Department family,Entity,Date,Expense Type,Expense area,Supplier,Transaction number,AP Amount (�)
Department of Health,NHS Sheffield CCG,28/02/2018,C&M-PMS Contract Value,PRC DELEGATED CO-COMMISSIONING,ABBEY LANE SURGERY,20828510,"22,188.36 "
Department of Health,NHS Sheffield CCG,28/02/2018,C&M-PMS DES Minor Surgery,PRC DELEGATED CO-COMMISSIONING,ABBEY LANE SURGERY,20828510,755.00 
Department of Health,NHS Sheffield CCG,28/02/2018,C&M-PMS Funding Differential Review,PRC DELEGATED CO-COMMISSIONING,ABBEY LANE SURGERY,20828510,"1,105.08 "
Department of Health,NHS Sheffield CCG,28/02/2018,C&M-PMS Out of Hours Opt Outs,PRC DELEGATED CO-COMMISSIONING,ABBEY LANE SURGERY,20828510,9.87 
Department of Health,NHS Sheffield CCG,28/02/2018,C&M-PMS Prem Notional Rent,PRC DELEGATED CO-COMMISSIONING,ABBEY LANE SURGERY,20828510,"2,122.92 "
Department of Health,NHS Sheffield CCG,28/02/2018,C&M-PMS QOF Aspiration,PRC DELEGATED CO-COMMISSIONING,ABBEY LANE SURGERY,20828510,"3,210.12 "
Department of Health,NHS Sheffield CCG,28/02/2018,Cont Care-Physical Disab (65+),CHC ADULT FULLY FUNDED,ABBEYCARE NURSING,20985769,"49,782.90 "
Department of Health,NHS Sheffield CCG,28/02/2018,C&M-PMS Contract Value,PRC DELEGATED CO-COMMISSIONING,AVENUE MEDICAL CENTRE SHEFFIELD,20828477,"53,143.93 "
Department of Health,NHS Sheffield CCG,28/02/2018,C&M-PMS DES Learn Dsblty Hlth Chk,PRC DELEGATED CO-COMMISSIONING,AVENUE MEDICAL CENTRE SHEFFIELD,20828477,700.00 
Department of Health,NHS Sheffield CCG,28/02/2018,C&M-PMS DES Minor Surgery,PRC DELEGATED CO-COMMISSIONING,AVENUE MEDICAL CENTRE SHEFFIELD,20828477,990.00 
Department of Health,NHS Sheffield CCG,28/02/2018,C&M-PMS Out of Hours Opt Outs,PRC DELEGATED CO-COMMISSIONING,AVENUE MEDICAL CENTRE SHEFFIELD,20828477,125.94 
Department of Health,NHS Sheffield CCG,28/02/2018,C&M-PMS Prem Notional Rent,PRC DELEGATED CO-COMMISSIONING,AVENUE MEDICAL CENTRE SHEFFIELD,20828477,"5,546.67 "
Department of Health,NHS Sheffield CCG,28/02/2018,C&M-PMS Prem Water Rates,PRC DELEGATED CO-COMMISSIONING,AVENUE MEDICAL CENTRE SHEFFIELD,20828477,193.86 
Department of Health,NHS Sheffield CCG,28/02/2018,C&M-PMS QOF Aspiration,PRC DELEGATED CO-COMMISSIONING,AVENUE MEDICAL CENTRE SHEFFIELD,20828477,"6,441.78 "
Department of Health,NHS Sheffield CCG,28/02/2018,Cont Care- Prior Year Payments,CHC ADULT FULLY FUNDED,BARCHESTER HEALTHCARE LTD,20719422,"30,892.86 "
Department of Health,NHS Sheffield CCG,28/02/2018,Cont Care-Mental Health (65+),CHC ADULT FULLY FUNDED,BARCHESTER HEALTHCARE LTD,20719483,"(41,259.27)"
Department of Health,NHS Sheffield CCG,28/02/2018,Hcare Srv Rec Fdtn Trust-Contract Baseline,ACUTE COMMISSIONING,BARNSLEY HOSPITAL NHS FOUNDATION TRUST,20795482,"72,098.00 "
Department of Health,NHS Sheffield CCG,28/02/2018,C&M-PMS Contract Value,PRC DELEGATED CO-COMMISSIONING,BARNSLEY ROAD SURGERY,20828513,"21,479.09 "
Department of Health,NHS Sheffield CCG,28/02/2018,C&M-PMS Funding Differential Review,PRC DELEGATED CO-COMMISSIONING,BARNSLEY ROAD SURGERY,20828513,370.25 
Department of Health,NHS Sheffield CCG,28/02/2018,C&M-PMS Prem Notional Rent,PRC DELEGATED CO-COMMISSIONING,BARNSLEY ROAD SURGERY,20828513,"2,652.17 "
Department of Health,NHS Sheffield CCG,28/02/2018,C&M-PMS QOF Aspiration,PRC DELEGATED CO-COMMISSIONING,BARNSLEY ROAD SURGERY,20828513,"2,500.90 "
Department of Health,NHS Sheffield CCG,28/02/2018,C&M-GMS Cost of Drugs -Prescribing,LOCAL ENHANCED SERVICES,BASLOW ROAD & SHOREHAM STREET SURGERIES,21010889,"2,791.84 "
Department of Health,NHS Sheffield CCG,28/02/2018,C&M-GMS DES Minor Surgery,PRC DELEGATED CO-COMMISSIONING,BASLOW ROAD & SHOREHAM STREET SURGERIES,21010889,"3,430.00 "
Department of Health,NHS Sheffield CCG,28/02/2018,C&M-GMS Global Sum,PRC DELEGATED CO-COMMISSIONING,BASLOW ROAD & SHOREHAM STREET SURGERIES,21010889,"93,629.97 "
Department of Health,NHS Sheffield CCG,28/02/2018,C&M-GMS MPIG Correction Factor,PRC DELEGATED CO-COMMISSIONING,BASLOW ROAD & SHOREHAM STREET SURGERIES,21010889,438.64 
Department of Health,NHS Sheffield CCG,28/02/2018,C&M-GMS Prem Notional Rent,PRC DELEGATED CO-COMMISSIONING,BASLOW ROAD & SHOREHAM STREET SURGERIES,21010889,"8,511.25 "
Department of Health,NHS Sheffield CCG,28/02/2018,C&M-GMS Prof Fees Prescribing,PRC DELEGATED CO-COMMISSIONING,BASLOW ROAD & SHOREHAM STREET SURGERIES,21010889,636.20 
Department of Health,NHS Sheffield CCG,28/02/2018,C&M-GMS QOF Aspiration,PRC DELEGATED CO-COMMISSIONING,BASLOW ROAD & SHOREHAM STREET SURGERIES,21010889,"10,284.12 "
Department of Health,NHS Sheffield CCG,28/02/2018,Cont Care-Physical Disab (65+),CHC ADULT FULLY FUNDED,BC SHEFFIELD LTD,20719566,"32,329.44 "
Department of Health,NHS Sheffield CCG,28/02/2018,C&M-PMS Contract Value,PRC DELEGATED CO-COMMISSIONING,BIRLEY HEALTH CENTRE,20856806,"61,372.21 "
Department of Health,NHS Sheffield CCG,28/02/2018,C&M-PMS DES Minor Surgery,PRC DELEGATED CO-COMMISSIONING,BIRLEY HEALTH CENTRE,20856806,"2,880.00 "
Department of Health,NHS Sheffield CCG,28/02/2018,C&M-PMS Funding Differential Review,PRC DELEGATED CO-COMMISSIONING,BIRLEY HEALTH CENTRE,20856806,"2,653.00 "
Department of Health,NHS Sheffield CCG,28/02/2018,C&M-PMS Out of Hours Opt Outs,PRC DELEGATED CO-COMMISSIONING,BIRLEY HEALTH CENTRE,20856806,24.30 
Department of Health,NHS Sheffield CCG,28/02/2018,C&M-PMS PCO Locum Adop/Pat/Mat,PRC DELEGATED CO-COMMISSIONING,BIRLEY HEALTH CENTRE,20856806,"5,303.93 "
Department of Health,NHS Sheffield CCG,28/02/2018,C&M-PMS Prem Notional Rent,PRC DELEGATED CO-COMMISSIONING,BIRLEY HEALTH CENTRE,20856806,"7,775.48 "
Department of Health,NHS Sheffield CCG,28/02/2018,C&M-PMS Prem Rates,PRC DELEGATED CO-COMMISSIONING,BIRLEY HEALTH CENTRE,20856806,"12,497.13 "
Department of Health,NHS Sheffield CCG,28/02/2018,C&M-PMS Prem Water Rates,PRC DELEGATED CO-COMMISSIONING,BIRLEY HEALTH CENTRE,20856806,877.35 
Department of Health,NHS Sheffield CCG,28/02/2018,C&M-PMS QOF Aspiration,PRC DELEGATED CO-COMMISSIONING,BIRLEY HEALTH CENTRE,20856806,"8,879.62 "
Department of Health,NHS Sheffield CCG,28/02/2018,Cont Care- Children,CHC CHILDREN,BLUEBELL WOOD CHILDRENS HOSPICE,20810805,"30,000.00 "
Department of Health,NHS Sheffield CCG,28/02/2018,Clinical&Medical-Independent Sector,ACUTE COMMISSIONING,BMI HEALTHCARE COLLECTIONS,20795476,"77,530.74 "
Department of Health,NHS Sheffield CCG,28/02/2018,C&M-GMS Cost of Drugs -Prescribing,LOCAL ENHANCED SERVICES,BROOMHILL SURGERY,21010896,"2,920.79 "
Department of Health,NHS Sheffield CCG,28/02/2018,C&M-GMS DES Learn Dsblty Hlth Chk,PRC DELEGATED CO-COMMISSIONING,BROOMHILL SURGERY,21010896,140.00 
Department of Health,NHS Sheffield CCG,28/02/2018,C&M-GMS DES Minor Surgery,PRC DELEGATED CO-COMMISSIONING,BROOMHILL SURGERY,21010896,575.00 
Department of Health,NHS Sheffield CCG,28/02/2018,C&M-GMS Global Sum,PRC DELEGATED CO-COMMISSIONING,BROOMHILL SURGERY,21010896,"60,733.57 "
Department of Health,NHS Sheffield CCG,28/02/2018,C&M-GMS MPIG Correction Factor,PRC DELEGATED CO-COMMISSIONING,BROOMHILL SURGERY,21010896,753.01 
Department of Health,NHS Sheffield CCG,28/02/2018,C&M-GMS Prem Cost Rent,PRC DELEGATED CO-COMMISSIONING,BROOMHILL SURGERY,21010896,"3,380.00 "
Department of Health,NHS Sheffield CCG,28/02/2018,C&M-GMS Prem Notional Rent,PRC DELEGATED CO-COMMISSIONING,BROOMHILL SURGERY,21010896,"2,541.67 "
Department of Health,NHS Sheffield CCG,28/02/2018,C&M-GMS Prof Fees Prescribing,PRC DELEGATED CO-COMMISSIONING,BROOMHILL SURGERY,21010896,424.13 
Department of Health,NHS Sheffield CCG,28/02/2018,C&M-GMS QOF Aspiration,PRC DELEGATED CO-COMMISSIONING,BROOMHILL SURGERY,21010896,"6,516.86 "
Department of Health,NHS Sheffield CCG,28/02/2018,C&M-GMS Cost of Drugs -Prescribing,LOCAL ENHANCED SERVICES,BUCHANAN ROAD SURGERY,21010892,106.69 
Department of Health,NHS Sheffield CCG,28/02/2018,C&M-GMS DES Minor Surgery,PRC DELEGATED CO-COMMISSIONING,BUCHANAN ROAD SURGERY,21010892,560.00 
Department of Health,NHS Sheffield CCG,28/02/2018,C&M-GMS Global Sum,PRC DELEGATED CO-COMMISSIONING,BUCHANAN ROAD SURGERY,21010892,"34,478.60 "
Department of Health,NHS Sheffield CCG,28/02/2018,C&M-GMS MPIG Correction Factor,PRC DELEGATED CO-COMMISSIONING,BUCHANAN ROAD SURGERY,21010892,"1,965.76 "
Department of Health,NHS Sheffield CCG,28/02/2018,C&M-GMS PCO Locum Adop/Pat/Mat,PRC DELEGATED CO-COMMISSIONING,BUCHANAN ROAD SURGERY,21010892,"2,263.48 "
Department of Health,NHS Sheffield CCG,28/02/2018,C&M-GMS Prem Notional Rent,PRC DELEGATED CO-COMMISSIONING,BUCHANAN ROAD SURGERY,21010892,"2,595.83 "
Department of Health,NHS Sheffield CCG,28/02/2018,C&M-GMS Prem Water Rates,PRC DELEGATED CO-COMMISSIONING,BUCHANAN ROAD SURGERY,21010892,313.57 
Department of Health,NHS Sheffield CCG,28/02/2018,C&M-GMS Prof Fees Prescribing,PRC DELEGATED CO-COMMISSIONING,BUCHANAN ROAD SURGERY,21010892,37.55 
Department of Health,NHS Sheffield CCG,28/02/2018,C&M-GMS QOF Aspiration,PRC DELEGATED CO-COMMISSIONING,BUCHANAN ROAD SURGERY,21010892,"4,538.47 "
Department of Health,NHS Sheffield CCG,28/02/2018,C&M-PMS Contract Value,PRC DELEGATED CO-COMMISSIONING,BURNCROSS SURGERY,20828518,"118,437.85 "
Department of Health,NHS Sheffield CCG,28/02/2018,C&M-PMS DES Minor Surgery,PRC DELEGATED CO-COMMISSIONING,BURNCROSS SURGERY,20828518,"3,645.00 "
Department of Health,NHS Sheffield CCG,28/02/2018,C&M-PMS Funding Differential Review,PRC DELEGATED CO-COMMISSIONING,BURNCROSS SURGERY,20828518,"1,648.42 "
Department of Health,NHS Sheffield CCG,28/02/2018,C&M-PMS Prem Notional Rent,PRC DELEGATED CO-COMMISSIONING,BURNCROSS SURGERY,20828518,"14,058.33 "
Department of Health,NHS Sheffield CCG,28/02/2018,C&M-PMS QOF Aspiration,PRC DELEGATED CO-COMMISSIONING,BURNCROSS SURGERY,20828518,"14,930.79 "
Department of Health,NHS Sheffield CCG,28/02/2018,C&M-PMS Contract Value,PRC DELEGATED CO-COMMISSIONING,BURNGREAVE SURGERY,20828521,"54,107.28 "
Department of Health,NHS Sheffield CCG,28/02/2018,C&M-PMS DES Learn Dsblty Hlth Chk,PRC DELEGATED CO-COMMISSIONING,BURNGREAVE SURGERY,20828521,"1,120.00 "
Department of Health,NHS Sheffield CCG,28/02/2018,C&M-PMS DES Minor Surgery,PRC DELEGATED CO-COMMISSIONING,BURNGREAVE SURGERY,20828521,565.00 
Department of Health,NHS Sheffield CCG,28/02/2018,C&M-PMS Funding Differential Review,PRC DELEGATED CO-COMMISSIONING,BURNGREAVE SURGERY,20828521,"1,353.08 "
Department of Health,NHS Sheffield CCG,28/02/2018,C&M-PMS Out of Hours Opt Outs,PRC DELEGATED CO-COMMISSIONING,BURNGREAVE SURGERY,20828521,29.31 
Department of Health,NHS Sheffield CCG,28/02/2018,C&M-PMS Prem Notional Rent,PRC DELEGATED CO-COMMISSIONING,BURNGREAVE SURGERY,20828521,"6,622.91 "
Department of Health,NHS Sheffield CCG,28/02/2018,C&M-PMS QOF Aspiration,PRC DELEGATED CO-COMMISSIONING,BURNGREAVE SURGERY,20828521,"5,148.30 "
Department of Health,NHS Sheffield CCG,28/02/2018,C&M-GMS Cost of Drugs -Prescribing,LOCAL ENHANCED SERVICES,CARTERKNOWLE & DORE MEDICAL PRACTICE,21010901,"6,260.49 "
Department of Health,NHS Sheffield CCG,28/02/2018,C&M-GMS DES Learn Dsblty Hlth Chk,PRC DELEGATED CO-COMMISSIONING,CARTERKNOWLE & DORE MEDICAL PRACTICE,21010901,140.00 
Department of Health,NHS Sheffield CCG,28/02/2018,C&M-GMS DES Minor Surgery,PRC DELEGATED CO-COMMISSIONING,CARTERKNOWLE & DORE MEDICAL PRACTICE,21010901,"2,170.00 "
Department of Health,NHS Sheffield CCG,28/02/2018,C&M-GMS Global Sum,PRC DELEGATED CO-COMMISSIONING,CARTERKNOWLE & DORE MEDICAL PRACTICE,21010901,"79,320.00 "
Department of Health,NHS Sheffield CCG,28/02/2018,C&M-GMS MPIG Correction Factor,PRC DELEGATED CO-COMMISSIONING,CARTERKNOWLE & DORE MEDICAL PRACTICE,21010901,"2,241.88 "
Department of Health,NHS Sheffield CCG,28/02/2018,C&M-GMS Prem Notional Rent,PRC DELEGATED CO-COMMISSIONING,CARTERKNOWLE & DORE MEDICAL PRACTICE,21010901,"7,538.34 "
Department of Health,NHS Sheffield CCG,28/02/2018,C&M-GMS Prof Fees Prescribing,PRC DELEGATED CO-COMMISSIONING,CARTERKNOWLE & DORE MEDICAL PRACTICE,21010901,"1,079.17 "
Department of Health,NHS Sheffield CCG,28/02/2018,C&M-GMS QOF Aspiration,PRC DELEGATED CO-COMMISSIONING,CARTERKNOWLE & DORE MEDICAL PRACTICE,21010901,"10,317.62 "
Department of Health,NHS Sheffield CCG,28/02/2018,Cont Care-Learning Disab(<65),CHC ADULT JOINT FUNDED,CAS LEARNING DISABILITIES MIDLANDS LTD,21072897,"119,181.07 "
Department of Health,NHS Sheffield CCG,28/02/2018,Cont Care-Learning Disab(<65),CHC ADULT JOINT FUNDED,CAS LEARNING DISABILITIES MIDLANDS LTD,21072962,"(119,181.07)"
Department of Health,NHS Sheffield CCG,28/02/2018,C&M-GMS Cost of Drugs -Prescribing,LOCAL ENHANCED SERVICES,CHARNOCK HEALTH PRIMARY CARE CENTRE,21010898,418.91 
Department of Health,NHS Sheffield CCG,28/02/2018,C&M-GMS DES Minor Surgery,PRC DELEGATED CO-COMMISSIONING,CHARNOCK HEALTH PRIMARY CARE CENTRE,21010898,895.00 
Department of Health,NHS Sheffield CCG,28/02/2018,C&M-GMS Global Sum,PRC DELEGATED CO-COMMISSIONING,CHARNOCK HEALTH PRIMARY CARE CENTRE,21010898,"39,009.79 "
Department of Health,NHS Sheffield CCG,28/02/2018,C&M-GMS MPIG Correction Factor,PRC DELEGATED CO-COMMISSIONING,CHARNOCK HEALTH PRIMARY CARE CENTRE,21010898,619.87 
Department of Health,NHS Sheffield CCG,28/02/2018,C&M-GMS Prem Notional Rent,PRC DELEGATED CO-COMMISSIONING,CHARNOCK HEALTH PRIMARY CARE CENTRE,21010898,305.00 
Department of Health,NHS Sheffield CCG,28/02/2018,C&M-GMS Prem Water Rates,PRC DELEGATED CO-COMMISSIONING,CHARNOCK HEALTH PRIMARY CARE CENTRE,21010898,213.96 
Department of Health,NHS Sheffield CCG,28/02/2018,C&M-GMS Prof Fees Prescribing,PRC DELEGATED CO-COMMISSIONING,CHARNOCK HEALTH PRIMARY CARE CENTRE,21010898,70.69 
Department of Health,NHS Sheffield CCG,28/02/2018,C&M-GMS QOF Aspiration,PRC DELEGATED CO-COMMISSIONING,CHARNOCK HEALTH PRIMARY CARE CENTRE,21010898,"4,669.55 "
Department of Health,NHS Sheffield CCG,28/02/2018,Hcare Srv Rec Fdtn Trust-Contract Baseline,ACUTE COMMISSIONING,CHESTERFIELD ROYAL HOSPITAL NHS FOUNDATION TRUST,20842998,"273,318.00 "
Department of Health,NHS Sheffield CCG,28/02/2018,Clinical&Medical-Independent Sector,ACUTE COMMISSIONING,CLAREMONT HOSPITAL,20795494,"78,290.00 "
Department of Health,NHS Sheffield CCG,28/02/2018,Cont Care-Funded Nursing Care Allow,FUNDED NURSING CARE,COUNTRY COURT CARE LTD,20811087,"28,972.20 "
Department of Health,NHS Sheffield CCG,28/02/2018,C&M-GMS Cost of Drugs -Prescribing,LOCAL ENHANCED SERVICES,CROOKES PRACTICE,21038875,"1,746.88 "
Department of Health,NHS Sheffield CCG,28/02/2018,C&M-GMS DES Learn Dsblty Hlth Chk,PRC DELEGATED CO-COMMISSIONING,CROOKES PRACTICE,21038875,"1,960.00 "
Department of Health,NHS Sheffield CCG,28/02/2018,C&M-GMS Global Sum,PRC DELEGATED CO-COMMISSIONING,CROOKES PRACTICE,21038875,"47,331.53 "
Department of Health,NHS Sheffield CCG,28/02/2018,C&M-GMS MPIG Correction Factor,PRC DELEGATED CO-COMMISSIONING,CROOKES PRACTICE,21038875,"2,318.88 "
Department of Health,NHS Sheffield CCG,28/02/2018,C&M-GMS Prem Notional Rent,PRC DELEGATED CO-COMMISSIONING,CROOKES PRACTICE,21038875,"3,752.42 "
Department of Health,NHS Sheffield CCG,28/02/2018,C&M-GMS Prof Fees Prescribing,PRC DELEGATED CO-COMMISSIONING,CROOKES PRACTICE,21038875,346.82 
Department of Health,NHS Sheffield CCG,28/02/2018,C&M-GMS QOF Aspiration,PRC DELEGATED CO-COMMISSIONING,CROOKES PRACTICE,21038875,"4,702.76 "
Department of Health,NHS Sheffield CCG,28/02/2018,C&M-PMS Contract Value,PRC DELEGATED CO-COMMISSIONING,DEEPCAR MEDICAL CENTRE,20856807,"39,016.65 "
Department of Health,NHS Sheffield CCG,28/02/2018,C&M-PMS DES Minor Surgery,PRC DELEGATED CO-COMMISSIONING,DEEPCAR MEDICAL CENTRE,20856807,40.00 
Department of Health,NHS Sheffield CCG,28/02/2018,C&M-PMS Funding Differential Review,PRC DELEGATED CO-COMMISSIONING,DEEPCAR MEDICAL CENTRE,20856807,306.08 
Department of Health,NHS Sheffield CCG,28/02/2018,C&M-PMS Prem Healthcentre Rent,PRC DELEGATED CO-COMMISSIONING,DEEPCAR MEDICAL CENTRE,20856807,"27,983.03 "
Department of Health,NHS Sheffield CCG,28/02/2018,C&M-PMS QOF Aspiration,PRC DELEGATED CO-COMMISSIONING,DEEPCAR MEDICAL CENTRE,20856807,"4,452.12 "
Department of Health,NHS Sheffield CCG,28/02/2018,C&M-GMS Cost of Drugs -Prescribing,LOCAL ENHANCED SERVICES,DEVONSHIRE GREEN MEDICAL CENTRE,21010909,471.34 
Department of Health,NHS Sheffield CCG,28/02/2018,C&M-GMS DES Minor Surgery,PRC DELEGATED CO-COMMISSIONING,DEVONSHIRE GREEN MEDICAL CENTRE,21010909,450.00 
Department of Health,NHS Sheffield CCG,28/02/2018,C&M-GMS Global Sum,PRC DELEGATED CO-COMMISSIONING,DEVONSHIRE GREEN MEDICAL CENTRE,21010909,"42,892.02 "
Department of Health,NHS Sheffield CCG,28/02/2018,C&M-GMS MPIG Correction Factor,PRC DELEGATED CO-COMMISSIONING,DEVONSHIRE GREEN MEDICAL CENTRE,21010909,"4,846.80 "
Department of Health,NHS Sheffield CCG,28/02/2018,C&M-GMS Prem Notional Rent,PRC DELEGATED CO-COMMISSIONING,DEVONSHIRE GREEN MEDICAL CENTRE,21010909,"5,987.50 "
Department of Health,NHS Sheffield CCG,28/02/2018,C&M-GMS Prof Fees Prescribing,PRC DELEGATED CO-COMMISSIONING,DEVONSHIRE GREEN MEDICAL CENTRE,21010909,134.76 
Department of Health,NHS Sheffield CCG,28/02/2018,C&M-GMS QOF Aspiration,PRC DELEGATED CO-COMMISSIONING,DEVONSHIRE GREEN MEDICAL CENTRE,21010909,"5,205.83 "
Department of Health,NHS Sheffield CCG,28/02/2018,Hcare Srv Rec Fdtn Trust-Contract Baseline,ACUTE COMMISSIONING,DONCASTER AND BASSETLAW HOSPITALS NHS FOUNDATION TRUST,20755818,"34,679.00 "
Department of Health,NHS Sheffield CCG,28/02/2018,C&M-PMS Contract Value,PRC DELEGATED CO-COMMISSIONING,DOVERCOURT SURGERY,20828529,"69,364.23 "
Department of Health,NHS Sheffield CCG,28/02/2018,C&M-PMS DES Learn Dsblty Hlth Chk,PRC DELEGATED CO-COMMISSIONING,DOVERCOURT SURGERY,20828529,"1,540.00 "
Department of Health,NHS Sheffield CCG,28/02/2018,C&M-PMS DES Minor Surgery,PRC DELEGATED CO-COMMISSIONING,DOVERCOURT SURGERY,20828529,"1,880.00 "
Department of Health,NHS Sheffield CCG,28/02/2018,C&M-PMS Funding Differential Review,PRC DELEGATED CO-COMMISSIONING,DOVERCOURT SURGERY,20828529,"3,616.08 "
Department of Health,NHS Sheffield CCG,28/02/2018,C&M-PMS Prem Actual Rent,PRC DELEGATED CO-COMMISSIONING,DOVERCOURT SURGERY,20828529,"12,400.00 "
Department of Health,NHS Sheffield CCG,28/02/2018,C&M-PMS Prem Notional Rent,PRC DELEGATED CO-COMMISSIONING,DOVERCOURT SURGERY,20828529,"1,708.34 "
Department of Health,NHS Sheffield CCG,28/02/2018,C&M-PMS Prem Water Rates,PRC DELEGATED CO-COMMISSIONING,DOVERCOURT SURGERY,20828529,933.34 
Department of Health,NHS Sheffield CCG,28/02/2018,C&M-PMS QOF Aspiration,PRC DELEGATED CO-COMMISSIONING,DOVERCOURT SURGERY,20828529,"7,505.03 "
Department of Health,NHS Sheffield CCG,28/02/2018,C&M-PMS Contract Value,PRC DELEGATED CO-COMMISSIONING,DR MEHROTRA & PARTNER,20828533,"27,162.37 "
Department of Health,NHS Sheffield CCG,28/02/2018,C&M-PMS Funding Differential Review,PRC DELEGATED CO-COMMISSIONING,DR MEHROTRA & PARTNER,20828533,885.92 
Department of Health,NHS Sheffield CCG,28/02/2018,C&M-PMS Prem Notional Rent,PRC DELEGATED CO-COMMISSIONING,DR MEHROTRA & PARTNER,20828533,"5,157.33 "
Department of Health,NHS Sheffield CCG,28/02/2018,C&M-PMS QOF Aspiration,PRC DELEGATED CO-COMMISSIONING,DR MEHROTRA & PARTNER,20828533,"3,389.93 "
Department of Health,NHS Sheffield CCG,28/02/2018,C&M-PMS Contract Value,PRC DELEGATED CO-COMMISSIONING,DR MILNER & PARTNERS,20856808,"72,194.42 "
Department of Health,NHS Sheffield CCG,28/02/2018,C&M-PMS DES Learn Dsblty Hlth Chk,PRC DELEGATED CO-COMMISSIONING,DR MILNER & PARTNERS,20856808,"1,820.00 "
Department of Health,NHS Sheffield CCG,28/02/2018,C&M-PMS DES Minor Surgery,PRC DELEGATED CO-COMMISSIONING,DR MILNER & PARTNERS,20856808,"2,815.00 "
Department of Health,NHS Sheffield CCG,28/02/2018,C&M-PMS Funding Differential Review,PRC DELEGATED CO-COMMISSIONING,DR MILNER & PARTNERS,20856808,"4,581.42 "
Department of Health,NHS Sheffield CCG,28/02/2018,C&M-PMS Out of Hours Opt Outs,PRC DELEGATED CO-COMMISSIONING,DR MILNER & PARTNERS,20856808,7.63 
Department of Health,NHS Sheffield CCG,28/02/2018,C&M-PMS Prem Actual Rent,PRC DELEGATED CO-COMMISSIONING,DR MILNER & PARTNERS,20856808,"11,382.00 "
Department of Health,NHS Sheffield CCG,28/02/2018,C&M-PMS Prem Notional Rent,PRC DELEGATED CO-COMMISSIONING,DR MILNER & PARTNERS,20856808,"4,462.41 "
Department of Health,NHS Sheffield CCG,28/02/2018,C&M-PMS Prem Rates,PRC DELEGATED CO-COMMISSIONING,DR MILNER & PARTNERS,20856808,"1,265.65 "
Department of Health,NHS Sheffield CCG,28/02/2018,C&M-PMS Prem Water Rates,PRC DELEGATED CO-COMMISSIONING,DR MILNER & PARTNERS,20856808,597.10 
Department of Health,NHS Sheffield CCG,28/02/2018,C&M-PMS QOF Aspiration,PRC DELEGATED CO-COMMISSIONING,DR MILNER & PARTNERS,20856808,"7,385.62 "
Department of Health,NHS Sheffield CCG,28/02/2018,C&M-GMS Cost of Drugs -Prescribing,LOCAL ENHANCED SERVICES,DUKE MEDICAL CENTRE,21038877,588.45 
Department of Health,NHS Sheffield CCG,28/02/2018,C&M-GMS DES Learn Dsblty Hlth Chk,PRC DELEGATED CO-COMMISSIONING,DUKE MEDICAL CENTRE,21038877,"1,400.00 "
Department of Health,NHS Sheffield CCG,28/02/2018,C&M-GMS DES Minor Surgery,PRC DELEGATED CO-COMMISSIONING,DUKE MEDICAL CENTRE,21038877,"1,000.00 "
Department of Health,NHS Sheffield CCG,28/02/2018,C&M-GMS Global Sum,PRC DELEGATED CO-COMMISSIONING,DUKE MEDICAL CENTRE,21038877,"54,227.95 "
Department of Health,NHS Sheffield CCG,28/02/2018,C&M-GMS MPIG Correction Factor,PRC DELEGATED CO-COMMISSIONING,DUKE MEDICAL CENTRE,21038877,918.76 
Department of Health,NHS Sheffield CCG,28/02/2018,C&M-GMS PCO Other,PRC DELEGATED CO-COMMISSIONING,DUKE MEDICAL CENTRE,21038877,"4,526.00 "
Department of Health,NHS Sheffield CCG,28/02/2018,C&M-GMS Prem Notional Rent,PRC DELEGATED CO-COMMISSIONING,DUKE MEDICAL CENTRE,21038877,"5,721.67 "
Department of Health,NHS Sheffield CCG,28/02/2018,C&M-GMS Prof Fees Prescribing,PRC DELEGATED CO-COMMISSIONING,DUKE MEDICAL CENTRE,21038877,214.28 
Department of Health,NHS Sheffield CCG,28/02/2018,C&M-GMS QOF Aspiration,PRC DELEGATED CO-COMMISSIONING,DUKE MEDICAL CENTRE,21038877,"5,346.37 "
Department of Health,NHS Sheffield CCG,28/02/2018,C&M-PMS Contract Value,PRC DELEGATED CO-COMMISSIONING,DUNNINC ROAD SURGERY,20828540,"23,292.54 "
Department of Health,NHS Sheffield CCG,28/02/2018,C&M-PMS DES Minor Surgery,PRC DELEGATED CO-COMMISSIONING,DUNNINC ROAD SURGERY,20828540,"1,570.00 "
Department of Health,NHS Sheffield CCG,28/02/2018,C&M-PMS Funding Differential Review,PRC DELEGATED CO-COMMISSIONING,DUNNINC ROAD SURGERY,20828540,"1,218.67 "
Department of Health,NHS Sheffield CCG,28/02/2018,C&M-PMS Prem Actual Rent,PRC DELEGATED CO-COMMISSIONING,DUNNINC ROAD SURGERY,20828540,54.38 
Department of Health,NHS Sheffield CCG,28/02/2018,C&M-PMS Prem Notional Rent,PRC DELEGATED CO-COMMISSIONING,DUNNINC ROAD SURGERY,20828540,"1,664.59 "
Department of Health,NHS Sheffield CCG,28/02/2018,C&M-PMS QOF Aspiration,PRC DELEGATED CO-COMMISSIONING,DUNNINC ROAD SURGERY,20828540,"2,548.20 "
Department of Health,NHS Sheffield CCG,28/02/2018,C&M-PMS Contract Value,PRC DELEGATED CO-COMMISSIONING,DYKES HALL MEDICAL CENTRE,20828544,"70,491.01 "
Department of Health,NHS Sheffield CCG,28/02/2018,C&M-PMS DES Minor Surgery,PRC DELEGATED CO-COMMISSIONING,DYKES HALL MEDICAL CENTRE,20828544,"1,000.00 "
Department of Health,NHS Sheffield CCG,28/02/2018,C&M-PMS Funding Differential Review,PRC DELEGATED CO-COMMISSIONING,DYKES HALL MEDICAL CENTRE,20828544,199.75 
Department of Health,NHS Sheffield CCG,28/02/2018,C&M-PMS Out of Hours Opt Outs,PRC DELEGATED CO-COMMISSIONING,DYKES HALL MEDICAL CENTRE,20828544,40.86 
Department of Health,NHS Sheffield CCG,28/02/2018,C&M-PMS Prem Notional Rent,PRC DELEGATED CO-COMMISSIONING,DYKES HALL MEDICAL CENTRE,20828544,"5,300.83 "
Department of Health,NHS Sheffield CCG,28/02/2018,C&M-PMS Prem Rates,PRC DELEGATED CO-COMMISSIONING,DYKES HALL MEDICAL CENTRE,20828544,"9,382.38 "
Department of Health,NHS Sheffield CCG,28/02/2018,C&M-PMS Prem Water Rates,PRC DELEGATED CO-COMMISSIONING,DYKES HALL MEDICAL CENTRE,20828544,"2,007.72 "
Department of Health,NHS Sheffield CCG,28/02/2018,C&M-PMS QOF Aspiration,PRC DELEGATED CO-COMMISSIONING,DYKES HALL MEDICAL CENTRE,20828544,"8,863.43 "
Department of Health,NHS Sheffield CCG,28/02/2018,C&M-PMS Contract Value,PRC DELEGATED CO-COMMISSIONING,EAST BANK MEDICAL CENTRE,20856809,"45,118.80 "
Department of Health,NHS Sheffield CCG,28/02/2018,C&M-PMS DES Minor Surgery,PRC DELEGATED CO-COMMISSIONING,EAST BANK MEDICAL CENTRE,20856809,540.00 
Department of Health,NHS Sheffield CCG,28/02/2018,C&M-PMS Funding Differential Review,PRC DELEGATED CO-COMMISSIONING,EAST BANK MEDICAL CENTRE,20856809,"1,588.17 "
Department of Health,NHS Sheffield CCG,28/02/2018,C&M-PMS Out of Hours Opt Outs,PRC DELEGATED CO-COMMISSIONING,EAST BANK MEDICAL CENTRE,20856809,43.71 
Department of Health,NHS Sheffield CCG,28/02/2018,C&M-PMS PCO Locum Adop/Pat/Mat,PRC DELEGATED CO-COMMISSIONING,EAST BANK MEDICAL CENTRE,20856809,"10,456.15 "
Department of Health,NHS Sheffield CCG,28/02/2018,C&M-PMS Prem Notional Rent,PRC DELEGATED CO-COMMISSIONING,EAST BANK MEDICAL CENTRE,20856809,"10,466.67 "
Department of Health,NHS Sheffield CCG,28/02/2018,C&M-PMS QOF Aspiration,PRC DELEGATED CO-COMMISSIONING,EAST BANK MEDICAL CENTRE,20856809,"5,086.87 "
Department of Health,NHS Sheffield CCG,28/02/2018,C&M-GMS Cost of Drugs -Prescribing,LOCAL ENHANCED SERVICES,ECCLESFIELD GROUP PRACTICE,21038876,"2,271.74 "
Department of Health,NHS Sheffield CCG,28/02/2018,C&M-GMS DES Learn Dsblty Hlth Chk,PRC DELEGATED CO-COMMISSIONING,ECCLESFIELD GROUP PRACTICE,21038876,"3,220.00 "
Department of Health,NHS Sheffield CCG,28/02/2018,C&M-GMS DES Minor Surgery,PRC DELEGATED CO-COMMISSIONING,ECCLESFIELD GROUP PRACTICE,21038876,"1,280.00 "
Department of Health,NHS Sheffield CCG,28/02/2018,C&M-GMS Global Sum,PRC DELEGATED CO-COMMISSIONING,ECCLESFIELD GROUP PRACTICE,21038876,"63,478.15 "
Department of Health,NHS Sheffield CCG,28/02/2018,C&M-GMS Prem Notional Rent,PRC DELEGATED CO-COMMISSIONING,ECCLESFIELD GROUP PRACTICE,21038876,"6,805.42 "
Department of Health,NHS Sheffield CCG,28/02/2018,C&M-GMS Prem Water Rates,PRC DELEGATED CO-COMMISSIONING,ECCLESFIELD GROUP PRACTICE,21038876,590.04 
Department of Health,NHS Sheffield CCG,28/02/2018,C&M-GMS Prof Fees Prescribing,PRC DELEGATED CO-COMMISSIONING,ECCLESFIELD GROUP PRACTICE,21038876,371.12 
Department of Health,NHS Sheffield CCG,28/02/2018,C&M-GMS QOF Aspiration,PRC DELEGATED CO-COMMISSIONING,ECCLESFIELD GROUP PRACTICE,21038876,"10,399.72 "
Department of Health,NHS Sheffield CCG,28/02/2018,C&M-GMS Cost of Drugs -Prescribing,LOCAL ENHANCED SERVICES,ELM LANE SURGERY,21010914,"1,477.41 "
Department of Health,NHS Sheffield CCG,28/02/2018,C&M-GMS DES Learn Dsblty Hlth Chk,PRC DELEGATED CO-COMMISSIONING,ELM LANE SURGERY,21010914,280.00 
Department of Health,NHS Sheffield CCG,28/02/2018,C&M-GMS Global Sum,PRC DELEGATED CO-COMMISSIONING,ELM LANE SURGERY,21010914,"38,022.53 "
Department of Health,NHS Sheffield CCG,28/02/2018,C&M-GMS MPIG Correction Factor,PRC DELEGATED CO-COMMISSIONING,ELM LANE SURGERY,21010914,"1,257.79 "
Department of Health,NHS Sheffield CCG,28/02/2018,C&M-GMS Prem Notional Rent,PRC DELEGATED CO-COMMISSIONING,ELM LANE SURGERY,21010914,"5,168.50 "
Department of Health,NHS Sheffield CCG,28/02/2018,C&M-GMS Prof Fees Prescribing,PRC DELEGATED CO-COMMISSIONING,ELM LANE SURGERY,21010914,161.25 
Department of Health,NHS Sheffield CCG,28/02/2018,C&M-GMS QOF Aspiration,PRC DELEGATED CO-COMMISSIONING,ELM LANE SURGERY,21010914,"4,880.72 "
Department of Health,NHS Sheffield CCG,28/02/2018,Cont Care-Physical Disab (<65),CHC ADULT FULLY FUNDED,FAIRWINDS HEALTH CARE LTD,20811066,"41,084.16 "
Department of Health,NHS Sheffield CCG,28/02/2018,C&M-PMS Contract Value,PRC DELEGATED CO-COMMISSIONING,FALKLAND HOUSE,20828554,"26,591.60 "
Department of Health,NHS Sheffield CCG,28/02/2018,C&M-PMS DES Minor Surgery,PRC DELEGATED CO-COMMISSIONING,FALKLAND HOUSE,20828554,"1,240.00 "
Department of Health,NHS Sheffield CCG,28/02/2018,C&M-PMS Funding Differential Review,PRC DELEGATED CO-COMMISSIONING,FALKLAND HOUSE,20828554,"1,255.92 "
Department of Health,NHS Sheffield CCG,28/02/2018,C&M-PMS Out of Hours Opt Outs,PRC DELEGATED CO-COMMISSIONING,FALKLAND HOUSE,20828554,93.78 
Department of Health,NHS Sheffield CCG,28/02/2018,C&M-PMS Prem Notional Rent,PRC DELEGATED CO-COMMISSIONING,FALKLAND HOUSE,20828554,"1,802.08 "
Department of Health,NHS Sheffield CCG,28/02/2018,C&M-PMS Prem Water Rates,PRC DELEGATED CO-COMMISSIONING,FALKLAND HOUSE,20828554,73.09 
Department of Health,NHS Sheffield CCG,28/02/2018,C&M-PMS QOF Aspiration,PRC DELEGATED CO-COMMISSIONING,FALKLAND HOUSE,20828554,"3,036.47 "
Department of Health,NHS Sheffield CCG,28/02/2018,C&M-GMS Cost of Drugs -Prescribing,LOCAL ENHANCED SERVICES,FAR LANE MEDICAL CENTRE,21010922,358.50 
Department of Health,NHS Sheffield CCG,28/02/2018,C&M-GMS DES Minor Surgery,PRC DELEGATED CO-COMMISSIONING,FAR LANE MEDICAL CENTRE,21010922,"3,435.00 "
Department of Health,NHS Sheffield CCG,28/02/2018,C&M-GMS Global Sum,PRC DELEGATED CO-COMMISSIONING,FAR LANE MEDICAL CENTRE,21010922,"52,995.22 "
Department of Health,NHS Sheffield CCG,28/02/2018,C&M-GMS Prem Notional Rent,PRC DELEGATED CO-COMMISSIONING,FAR LANE MEDICAL CENTRE,21010922,"3,462.50 "
Department of Health,NHS Sheffield CCG,28/02/2018,C&M-GMS Prof Fees Prescribing,PRC DELEGATED CO-COMMISSIONING,FAR LANE MEDICAL CENTRE,21010922,123.71 
Department of Health,NHS Sheffield CCG,28/02/2018,C&M-GMS QOF Aspiration,PRC DELEGATED CO-COMMISSIONING,FAR LANE MEDICAL CENTRE,21010922,"6,224.50 "
Department of Health,NHS Sheffield CCG,28/02/2018,C&M-PMS Contract Value,PRC DELEGATED CO-COMMISSIONING,FIRTH PARK SURGERY,20828549,"70,644.61 "
Department of Health,NHS Sheffield CCG,28/02/2018,C&M-PMS DES Learn Dsblty Hlth Chk,PRC DELEGATED CO-COMMISSIONING,FIRTH PARK SURGERY,20828549,"1,120.00 "
Department of Health,NHS Sheffield CCG,28/02/2018,C&M-PMS DES Minor Surgery,PRC DELEGATED CO-COMMISSIONING,FIRTH PARK SURGERY,20828549,"2,170.00 "
Department of Health,NHS Sheffield CCG,28/02/2018,C&M-PMS Out of Hours Opt Outs,PRC DELEGATED CO-COMMISSIONING,FIRTH PARK SURGERY,20828549,18.36 
Department of Health,NHS Sheffield CCG,28/02/2018,C&M-PMS Prem Notional Rent,PRC DELEGATED CO-COMMISSIONING,FIRTH PARK SURGERY,20828549,"4,500.00 "
Department of Health,NHS Sheffield CCG,28/02/2018,C&M-PMS Prem Rates,PRC DELEGATED CO-COMMISSIONING,FIRTH PARK SURGERY,20828549,"1,291.00 "
Department of Health,NHS Sheffield CCG,28/02/2018,C&M-PMS Prem Water Rates,PRC DELEGATED CO-COMMISSIONING,FIRTH PARK SURGERY,20828549,143.94 
Department of Health,NHS Sheffield CCG,28/02/2018,C&M-PMS QOF Aspiration,PRC DELEGATED CO-COMMISSIONING,FIRTH PARK SURGERY,20828549,"8,194.20 "
Department of Health,NHS Sheffield CCG,28/02/2018,C&M-GMS Cost of Drugs -Prescribing,LOCAL ENHANCED SERVICES,FLOWERS HEALTH CENTRE,21010992,744.52 
Department of Health,NHS Sheffield CCG,28/02/2018,C&M-GMS DES Minor Surgery,PRC DELEGATED CO-COMMISSIONING,FLOWERS HEALTH CENTRE,21010992,720.00 
Department of Health,NHS Sheffield CCG,28/02/2018,C&M-GMS Global Sum,PRC DELEGATED CO-COMMISSIONING,FLOWERS HEALTH CENTRE,21010992,"33,765.84 "
Department of Health,NHS Sheffield CCG,28/02/2018,C&M-GMS MPIG Correction Factor,PRC DELEGATED CO-COMMISSIONING,FLOWERS HEALTH CENTRE,21010992,"2,214.46 "
Department of Health,NHS Sheffield CCG,28/02/2018,C&M-GMS Prem Healthcentre Rent,PRC DELEGATED CO-COMMISSIONING,FLOWERS HEALTH CENTRE,21010992,"33,513.30 "
Department of Health,NHS Sheffield CCG,28/02/2018,C&M-GMS Prof Fees Prescribing,PRC DELEGATED CO-COMMISSIONING,FLOWERS HEALTH CENTRE,21010992,159.05 
Department of Health,NHS Sheffield CCG,28/02/2018,C&M-GMS QOF Aspiration,PRC DELEGATED CO-COMMISSIONING,FLOWERS HEALTH CENTRE,21010992,"4,334.56 "
Department of Health,NHS Sheffield CCG,28/02/2018,Cont Care-Physical Disab (<65),CHC ADULT FULLY FUNDED,FOUR SEASONS HEALTH CARE LTD,20842970,"50,293.78 "
Department of Health,NHS Sheffield CCG,28/02/2018,C&M-PMS Contract Value,PRC DELEGATED CO-COMMISSIONING,FOXHILL MEDICAL CENTRE SHEFFIELD,20828619,"50,364.37 "
Department of Health,NHS Sheffield CCG,28/02/2018,C&M-PMS DES Learn Dsblty Hlth Chk,PRC DELEGATED CO-COMMISSIONING,FOXHILL MEDICAL CENTRE SHEFFIELD,20828619,"1,540.00 "
Department of Health,NHS Sheffield CCG,28/02/2018,C&M-PMS DES Minor Surgery,PRC DELEGATED CO-COMMISSIONING,FOXHILL MEDICAL CENTRE SHEFFIELD,20828619,"1,070.00 "
Department of Health,NHS Sheffield CCG,28/02/2018,C&M-PMS Funding Differential Review,PRC DELEGATED CO-COMMISSIONING,FOXHILL MEDICAL CENTRE SHEFFIELD,20828619,"1,451.25 "
Department of Health,NHS Sheffield CCG,28/02/2018,C&M-PMS Out of Hours Opt Outs,PRC DELEGATED CO-COMMISSIONING,FOXHILL MEDICAL CENTRE SHEFFIELD,20828619,35.15 
Department of Health,NHS Sheffield CCG,28/02/2018,C&M-PMS Prem Healthcentre Rent,PRC DELEGATED CO-COMMISSIONING,FOXHILL MEDICAL CENTRE SHEFFIELD,20828619,"46,118.26 "
Department of Health,NHS Sheffield CCG,28/02/2018,C&M-PMS QOF Aspiration,PRC DELEGATED CO-COMMISSIONING,FOXHILL MEDICAL CENTRE SHEFFIELD,20828619,"5,736.75 "
Department of Health,NHS Sheffield CCG,28/02/2018,C&M-PMS Contract Value,PRC DELEGATED CO-COMMISSIONING,GLEADLESS MEDICAL CENTRE,20856810,"67,346.75 "
Department of Health,NHS Sheffield CCG,28/02/2018,C&M-PMS DES Minor Surgery,PRC DELEGATED CO-COMMISSIONING,GLEADLESS MEDICAL CENTRE,20856810,280.00 
Department of Health,NHS Sheffield CCG,28/02/2018,C&M-PMS Funding Differential Review,PRC DELEGATED CO-COMMISSIONING,GLEADLESS MEDICAL CENTRE,20856810,"1,261.42 "
Department of Health,NHS Sheffield CCG,28/02/2018,C&M-PMS Out of Hours Opt Outs,PRC DELEGATED CO-COMMISSIONING,GLEADLESS MEDICAL CENTRE,20856810,48.00 
Department of Health,NHS Sheffield CCG,28/02/2018,C&M-PMS Prem Notional Rent,PRC DELEGATED CO-COMMISSIONING,GLEADLESS MEDICAL CENTRE,20856810,"6,750.00 "
Department of Health,NHS Sheffield CCG,28/02/2018,C&M-PMS QOF Aspiration,PRC DELEGATED CO-COMMISSIONING,GLEADLESS MEDICAL CENTRE,20856810,"8,204.51 "
Department of Health,NHS Sheffield CCG,28/02/2018,C&M-GMS Cost of Drugs -Prescribing,LOCAL ENHANCED SERVICES,GRENOSIDE SURGERY,21010928,"2,549.33 "
Department of Health,NHS Sheffield CCG,28/02/2018,C&M-GMS DES Minor Surgery,PRC DELEGATED CO-COMMISSIONING,GRENOSIDE SURGERY,21010928,410.00 
Department of Health,NHS Sheffield CCG,28/02/2018,C&M-GMS Global Sum,PRC DELEGATED CO-COMMISSIONING,GRENOSIDE SURGERY,21010928,"54,372.88 "
Department of Health,NHS Sheffield CCG,28/02/2018,C&M-GMS Prem Notional Rent,PRC DELEGATED CO-COMMISSIONING,GRENOSIDE SURGERY,21010928,"8,150.17 "
Department of Health,NHS Sheffield CCG,28/02/2018,C&M-GMS Prem Water Rates,PRC DELEGATED CO-COMMISSIONING,GRENOSIDE SURGERY,21010928,130.45 
Department of Health,NHS Sheffield CCG,28/02/2018,C&M-GMS Prof Fees Prescribing,PRC DELEGATED CO-COMMISSIONING,GRENOSIDE SURGERY,21010928,234.16 
Department of Health,NHS Sheffield CCG,28/02/2018,C&M-GMS QOF Aspiration,PRC DELEGATED CO-COMMISSIONING,GRENOSIDE SURGERY,21010928,"6,197.70 "
Department of Health,NHS Sheffield CCG,28/02/2018,C&M-GMS Cost of Drugs -Prescribing,LOCAL ENHANCED SERVICES,GREYSTONES MEDICAL CENTRE,21010930,160.00 
Department of Health,NHS Sheffield CCG,28/02/2018,C&M-GMS DES Minor Surgery,PRC DELEGATED CO-COMMISSIONING,GREYSTONES MEDICAL CENTRE,21010930,815.00 
Department of Health,NHS Sheffield CCG,28/02/2018,C&M-GMS Global Sum,PRC DELEGATED CO-COMMISSIONING,GREYSTONES MEDICAL CENTRE,21010930,"18,705.95 "
Department of Health,NHS Sheffield CCG,28/02/2018,C&M-GMS MPIG Correction Factor,PRC DELEGATED CO-COMMISSIONING,GREYSTONES MEDICAL CENTRE,21010930,"1,656.69 "
Department of Health,NHS Sheffield CCG,28/02/2018,C&M-GMS Prem Notional Rent,PRC DELEGATED CO-COMMISSIONING,GREYSTONES MEDICAL CENTRE,21010930,"2,885.42 "
Department of Health,NHS Sheffield CCG,28/02/2018,C&M-GMS Prof Fees Prescribing,PRC DELEGATED CO-COMMISSIONING,GREYSTONES MEDICAL CENTRE,21010930,59.64 
Department of Health,NHS Sheffield CCG,28/02/2018,C&M-GMS QOF Aspiration,PRC DELEGATED CO-COMMISSIONING,GREYSTONES MEDICAL CENTRE,21010930,"2,071.10 "
Department of Health,NHS Sheffield CCG,28/02/2018,C&M-PMS Contract Value,PRC DELEGATED CO-COMMISSIONING,HACKENTHORPE MEDICAL CENTRE,20828563,"46,099.02 "
Department of Health,NHS Sheffield CCG,28/02/2018,C&M-PMS DES Learn Dsblty Hlth Chk,PRC DELEGATED CO-COMMISSIONING,HACKENTHORPE MEDICAL CENTRE,20828563,840.00 
Department of Health,NHS Sheffield CCG,28/02/2018,C&M-PMS DES Minor Surgery,PRC DELEGATED CO-COMMISSIONING,HACKENTHORPE MEDICAL CENTRE,20828563,"1,660.00 "
Department of Health,NHS Sheffield CCG,28/02/2018,C&M-PMS Funding Differential Review,PRC DELEGATED CO-COMMISSIONING,HACKENTHORPE MEDICAL CENTRE,20828563,"2,105.58 "
Department of Health,NHS Sheffield CCG,28/02/2018,C&M-PMS Out of Hours Opt Outs,PRC DELEGATED CO-COMMISSIONING,HACKENTHORPE MEDICAL CENTRE,20828563,5.93 
Department of Health,NHS Sheffield CCG,28/02/2018,C&M-PMS Prem Notional Rent,PRC DELEGATED CO-COMMISSIONING,HACKENTHORPE MEDICAL CENTRE,20828563,"4,981.25 "
Department of Health,NHS Sheffield CCG,28/02/2018,C&M-PMS Prem Water Rates,PRC DELEGATED CO-COMMISSIONING,HACKENTHORPE MEDICAL CENTRE,20828563,56.75 
Department of Health,NHS Sheffield CCG,28/02/2018,C&M-PMS QOF Aspiration,PRC DELEGATED CO-COMMISSIONING,HACKENTHORPE MEDICAL CENTRE,20828563,"6,731.39 "
Department of Health,NHS Sheffield CCG,28/02/2018,C&M-GMS Cost of Drugs -Prescribing,LOCAL ENHANCED SERVICES,HANDSWORTH MEDICAL PRACTICE SHEFFIELD,21010926,"1,216.27 "
Department of Health,NHS Sheffield CCG,28/02/2018,C&M-GMS DES Minor Surgery,PRC DELEGATED CO-COMMISSIONING,HANDSWORTH MEDICAL PRACTICE SHEFFIELD,21010926,480.00 
Department of Health,NHS Sheffield CCG,28/02/2018,C&M-GMS Global Sum,PRC DELEGATED CO-COMMISSIONING,HANDSWORTH MEDICAL PRACTICE SHEFFIELD,21010926,"71,422.44 "
Department of Health,NHS Sheffield CCG,28/02/2018,C&M-GMS Prem Notional Rent,PRC DELEGATED CO-COMMISSIONING,HANDSWORTH MEDICAL PRACTICE SHEFFIELD,21010926,"3,321.66 "
Department of Health,NHS Sheffield CCG,28/02/2018,C&M-GMS Prof Fees Prescribing,PRC DELEGATED CO-COMMISSIONING,HANDSWORTH MEDICAL PRACTICE SHEFFIELD,21010926,245.20 
Department of Health,NHS Sheffield CCG,28/02/2018,C&M-GMS QOF Aspiration,PRC DELEGATED CO-COMMISSIONING,HANDSWORTH MEDICAL PRACTICE SHEFFIELD,21010926,"8,011.43 "
Department of Health,NHS Sheffield CCG,28/02/2018,C&M-GMS Cost of Drugs -Prescribing,LOCAL ENHANCED SERVICES,HEALTH CARE SURGERY,21010936,"1,061.46 "
Department of Health,NHS Sheffield CCG,28/02/2018,C&M-GMS DES Minor Surgery,PRC DELEGATED CO-COMMISSIONING,HEALTH CARE SURGERY,21010936,200.00 
Department of Health,NHS Sheffield CCG,28/02/2018,C&M-GMS Global Sum,PRC DELEGATED CO-COMMISSIONING,HEALTH CARE SURGERY,21010936,"36,036.90 "
Department of Health,NHS Sheffield CCG,28/02/2018,C&M-GMS MPIG Correction Factor,PRC DELEGATED CO-COMMISSIONING,HEALTH CARE SURGERY,21010936,"1,170.03 "
Department of Health,NHS Sheffield CCG,28/02/2018,C&M-GMS Prem Notional Rent,PRC DELEGATED CO-COMMISSIONING,HEALTH CARE SURGERY,21010936,"3,862.50 "
Department of Health,NHS Sheffield CCG,28/02/2018,C&M-GMS Prem Rates,PRC DELEGATED CO-COMMISSIONING,HEALTH CARE SURGERY,21010936,518.00 
Department of Health,NHS Sheffield CCG,28/02/2018,C&M-GMS Prof Fees Prescribing,PRC DELEGATED CO-COMMISSIONING,HEALTH CARE SURGERY,21010936,225.32 
Department of Health,NHS Sheffield CCG,28/02/2018,C&M-GMS QOF Aspiration,PRC DELEGATED CO-COMMISSIONING,HEALTH CARE SURGERY,21010936,"4,381.71 "
Department of Health,NHS Sheffield CCG,28/02/2018,C&M-GMS Cost of Drugs -Prescribing,LOCAL ENHANCED SERVICES,HEELEY GREEN SURGERY,21010932,"1,185.70 "
Department of Health,NHS Sheffield CCG,28/02/2018,C&M-GMS Global Sum,PRC DELEGATED CO-COMMISSIONING,HEELEY GREEN SURGERY,21010932,"39,706.80 "
Department of Health,NHS Sheffield CCG,28/02/2018,C&M-GMS MPIG Correction Factor,PRC DELEGATED CO-COMMISSIONING,HEELEY GREEN SURGERY,21010932,564.30 
Department of Health,NHS Sheffield CCG,28/02/2018,C&M-GMS Prem Notional Rent,PRC DELEGATED CO-COMMISSIONING,HEELEY GREEN SURGERY,21010932,"3,254.17 "
Department of Health,NHS Sheffield CCG,28/02/2018,C&M-GMS Prof Fees Prescribing,PRC DELEGATED CO-COMMISSIONING,HEELEY GREEN SURGERY,21010932,284.96 
Department of Health,NHS Sheffield CCG,28/02/2018,C&M-GMS QOF Aspiration,PRC DELEGATED CO-COMMISSIONING,HEELEY GREEN SURGERY,21010932,"4,920.38 "
Department of Health,NHS Sheffield CCG,28/02/2018,C&M-GMS Cost of Drugs -Prescribing,LOCAL ENHANCED SERVICES,HOLLIES MEDICAL CENTRE,21010934,"1,273.76 "
Department of Health,NHS Sheffield CCG,28/02/2018,C&M-GMS DES Learn Dsblty Hlth Chk,PRC DELEGATED CO-COMMISSIONING,HOLLIES MEDICAL CENTRE,21010934,980.00 
Department of Health,NHS Sheffield CCG,28/02/2018,C&M-GMS DES Minor Surgery,PRC DELEGATED CO-COMMISSIONING,HOLLIES MEDICAL CENTRE,21010934,"1,475.00 "
Department of Health,NHS Sheffield CCG,28/02/2018,C&M-GMS Global Sum,PRC DELEGATED CO-COMMISSIONING,HOLLIES MEDICAL CENTRE,21010934,"53,581.74 "
Department of Health,NHS Sheffield CCG,28/02/2018,C&M-GMS MPIG Correction Factor,PRC DELEGATED CO-COMMISSIONING,HOLLIES MEDICAL CENTRE,21010934,"2,179.09 "
Department of Health,NHS Sheffield CCG,28/02/2018,C&M-GMS Prem Notional Rent,PRC DELEGATED CO-COMMISSIONING,HOLLIES MEDICAL CENTRE,21010934,"3,229.17 "
Department of Health,NHS Sheffield CCG,28/02/2018,C&M-GMS Prof Fees Prescribing,PRC DELEGATED CO-COMMISSIONING,HOLLIES MEDICAL CENTRE,21010934,238.57 
Department of Health,NHS Sheffield CCG,28/02/2018,C&M-GMS QOF Aspiration,PRC DELEGATED CO-COMMISSIONING,HOLLIES MEDICAL CENTRE,21010934,"6,561.21 "
Department of Health,NHS Sheffield CCG,28/02/2018,Cont Care-Physical Disab (<65),CHC ADULT FULLY FUNDED,HORIZON CARE HOMES LTD,20842913,"61,856.38 "
Department of Health,NHS Sheffield CCG,28/02/2018,Cont Care-Physical Disab (<65),CHC ADULT FULLY FUNDED,HORIZON CARE HOMES LTD,20842960,"91,855.73 "
Department of Health,NHS Sheffield CCG,28/02/2018,Cont Care-Physical Disab (<65),CHC ADULT FULLY FUNDED,HORIZON CARE HOMES LTD,20842983,"51,160.53 "
Department of Health,NHS Sheffield CCG,28/02/2018,C&M-PMS Contract Value,PRC DELEGATED CO-COMMISSIONING,JAUNTY SPRINGS HEALTH CENTRE,20828567,"28,777.86 "
Department of Health,NHS Sheffield CCG,28/02/2018,C&M-PMS DES Learn Dsblty Hlth Chk,PRC DELEGATED CO-COMMISSIONING,JAUNTY SPRINGS HEALTH CENTRE,20828567,700.00 
Department of Health,NHS Sheffield CCG,28/02/2018,C&M-PMS DES Minor Surgery,PRC DELEGATED CO-COMMISSIONING,JAUNTY SPRINGS HEALTH CENTRE,20828567,285.00 
Department of Health,NHS Sheffield CCG,28/02/2018,C&M-PMS Funding Differential Review,PRC DELEGATED CO-COMMISSIONING,JAUNTY SPRINGS HEALTH CENTRE,20828567,448.00 
Department of Health,NHS Sheffield CCG,28/02/2018,C&M-PMS Out of Hours Opt Outs,PRC DELEGATED CO-COMMISSIONING,JAUNTY SPRINGS HEALTH CENTRE,20828567,16.23 
Department of Health,NHS Sheffield CCG,28/02/2018,C&M-PMS Prem Notional Rent,PRC DELEGATED CO-COMMISSIONING,JAUNTY SPRINGS HEALTH CENTRE,20828567,"3,208.33 "
Department of Health,NHS Sheffield CCG,28/02/2018,C&M-PMS Prem Water Rates,PRC DELEGATED CO-COMMISSIONING,JAUNTY SPRINGS HEALTH CENTRE,20828567,98.48 
Department of Health,NHS Sheffield CCG,28/02/2018,C&M-PMS QOF Aspiration,PRC DELEGATED CO-COMMISSIONING,JAUNTY SPRINGS HEALTH CENTRE,20828567,"4,393.31 "
Department of Health,NHS Sheffield CCG,28/02/2018,C&M-GMS LES Translation Fees,INTERPRETING SERVICES,LANGUAGELINE SOLUTIONS,20842735,"33,178.80 "
Department of Health,NHS Sheffield CCG,28/02/2018,C&M-GMS LES Translation Fees,INTERPRETING SERVICES,LANGUAGELINE SOLUTIONS,20842742,"35,563.93 "
Department of Health,NHS Sheffield CCG,28/02/2018,Hcare Srv Rec NHS Trust-Contract Baseline,ACUTE COMMISSIONING,LEEDS TEACHING HOSPITALS NHS TRUST,20795473,"53,622.82 "
Department of Health,NHS Sheffield CCG,28/02/2018,Cont Care-Physical Disab (<65),CHC ADULT FULLY FUNDED,LONGLEY HEALTH CARE LTD,20842973,"120,787.12 "
Department of Health,NHS Sheffield CCG,28/02/2018,Cont Care-Physical Disab (<65),CHC ADULT FULLY FUNDED,LOXLEY HEALTH CARE LTD,20842974,"50,265.20 "
Department of Health,NHS Sheffield CCG,28/02/2018,C&M-PMS Contract Value,PRC DELEGATED CO-COMMISSIONING,MANCHESTER ROAD SURGERY SHEFFIELD,20828576,"30,618.93 "
Department of Health,NHS Sheffield CCG,28/02/2018,C&M-PMS DES Minor Surgery,PRC DELEGATED CO-COMMISSIONING,MANCHESTER ROAD SURGERY SHEFFIELD,20828576,"1,295.00 "
Department of Health,NHS Sheffield CCG,28/02/2018,C&M-PMS Funding Differential Review,PRC DELEGATED CO-COMMISSIONING,MANCHESTER ROAD SURGERY SHEFFIELD,20828576,446.67 
Department of Health,NHS Sheffield CCG,28/02/2018,C&M-PMS Prem Cost Rent,PRC DELEGATED CO-COMMISSIONING,MANCHESTER ROAD SURGERY SHEFFIELD,20828576,"3,472.17 "
Department of Health,NHS Sheffield CCG,28/02/2018,C&M-PMS Prem Notional Rent,PRC DELEGATED CO-COMMISSIONING,MANCHESTER ROAD SURGERY SHEFFIELD,20828576,442.92 
Department of Health,NHS Sheffield CCG,28/02/2018,C&M-PMS QOF Aspiration,PRC DELEGATED CO-COMMISSIONING,MANCHESTER ROAD SURGERY SHEFFIELD,20828576,"4,335.60 "
Department of Health,NHS Sheffield CCG,28/02/2018,C&M-GMS Cost of Drugs -Prescribing,LOCAL ENHANCED SERVICES,MANOR PARK MEDICAL CENTRE SHEFFIELD,21010946,"1,185.51 "
Department of Health,NHS Sheffield CCG,28/02/2018,C&M-GMS DES Minor Surgery,PRC DELEGATED CO-COMMISSIONING,MANOR PARK MEDICAL CENTRE SHEFFIELD,21010946,40.00 
Department of Health,NHS Sheffield CCG,28/02/2018,C&M-GMS Global Sum,PRC DELEGATED CO-COMMISSIONING,MANOR PARK MEDICAL CENTRE SHEFFIELD,21010946,"33,167.48 "
Department of Health,NHS Sheffield CCG,28/02/2018,C&M-GMS MPIG Correction Factor,PRC DELEGATED CO-COMMISSIONING,MANOR PARK MEDICAL CENTRE SHEFFIELD,21010946,559.19 
Department of Health,NHS Sheffield CCG,28/02/2018,C&M-GMS Prem Notional Rent,PRC DELEGATED CO-COMMISSIONING,MANOR PARK MEDICAL CENTRE SHEFFIELD,21010946,"3,050.00 "
Department of Health,NHS Sheffield CCG,28/02/2018,C&M-GMS Prof Fees Prescribing,PRC DELEGATED CO-COMMISSIONING,MANOR PARK MEDICAL CENTRE SHEFFIELD,21010946,231.95 
Department of Health,NHS Sheffield CCG,28/02/2018,C&M-GMS QOF Aspiration,PRC DELEGATED CO-COMMISSIONING,MANOR PARK MEDICAL CENTRE SHEFFIELD,21010946,"4,479.66 "
Department of Health,NHS Sheffield CCG,28/02/2018,C&M-GMS Cost of Drugs -Prescribing,LOCAL ENHANCED SERVICES,MATHEWS PRACTICE,21038878,311.06 
Department of Health,NHS Sheffield CCG,28/02/2018,C&M-GMS DES Minor Surgery,PRC DELEGATED CO-COMMISSIONING,MATHEWS PRACTICE,21038878,"2,525.00 "
Department of Health,NHS Sheffield CCG,28/02/2018,C&M-GMS Global Sum,PRC DELEGATED CO-COMMISSIONING,MATHEWS PRACTICE,21038878,"63,567.88 "
Department of Health,NHS Sheffield CCG,28/02/2018,C&M-GMS MPIG Correction Factor,PRC DELEGATED CO-COMMISSIONING,MATHEWS PRACTICE,21038878,898.44 
Department of Health,NHS Sheffield CCG,28/02/2018,C&M-GMS Prem Notional Rent,PRC DELEGATED CO-COMMISSIONING,MATHEWS PRACTICE,21038878,"8,660.42 "
Department of Health,NHS Sheffield CCG,28/02/2018,C&M-GMS Prof Fees Prescribing,PRC DELEGATED CO-COMMISSIONING,MATHEWS PRACTICE,21038878,106.03 
Department of Health,NHS Sheffield CCG,28/02/2018,C&M-GMS QOF Aspiration,PRC DELEGATED CO-COMMISSIONING,MATHEWS PRACTICE,21038878,"9,686.98 "
Department of Health,NHS Sheffield CCG,28/02/2018,C&M-PMS Contract Value,PRC DELEGATED CO-COMMISSIONING,MEADOWHEAD GROUP PRACTICE,20828572,"75,691.91 "
Department of Health,NHS Sheffield CCG,28/02/2018,C&M-PMS DES Learn Dsblty Hlth Chk,PRC DELEGATED CO-COMMISSIONING,MEADOWHEAD GROUP PRACTICE,20828572,"1,820.00 "
Department of Health,NHS Sheffield CCG,28/02/2018,C&M-PMS DES Minor Surgery,PRC DELEGATED CO-COMMISSIONING,MEADOWHEAD GROUP PRACTICE,20828572,"1,905.00 "
Department of Health,NHS Sheffield CCG,28/02/2018,C&M-PMS Out of Hours Opt Outs,PRC DELEGATED CO-COMMISSIONING,MEADOWHEAD GROUP PRACTICE,20828572,89.16 
Department of Health,NHS Sheffield CCG,28/02/2018,C&M-PMS Prem Cost Rent,PRC DELEGATED CO-COMMISSIONING,MEADOWHEAD GROUP PRACTICE,20828572,"3,647.42 "
Department of Health,NHS Sheffield CCG,28/02/2018,C&M-PMS Prem Notional Rent,PRC DELEGATED CO-COMMISSIONING,MEADOWHEAD GROUP PRACTICE,20828572,"3,358.33 "
Department of Health,NHS Sheffield CCG,28/02/2018,C&M-PMS Prem Water Rates,PRC DELEGATED CO-COMMISSIONING,MEADOWHEAD GROUP PRACTICE,20828572,270.66 
Department of Health,NHS Sheffield CCG,28/02/2018,C&M-PMS QOF Aspiration,PRC DELEGATED CO-COMMISSIONING,MEADOWHEAD GROUP PRACTICE,20828572,"10,533.01 "
Department of Health,NHS Sheffield CCG,28/02/2018,C&M-GMS Cost of Drugs -Prescribing,LOCAL ENHANCED SERVICES,MEDICAL CENTRE CRYSTAL PEAKS,21010940,"3,245.60 "
Department of Health,NHS Sheffield CCG,28/02/2018,C&M-GMS DES Learn Dsblty Hlth Chk,PRC DELEGATED CO-COMMISSIONING,MEDICAL CENTRE CRYSTAL PEAKS,21010940,"2,380.00 "
Department of Health,NHS Sheffield CCG,28/02/2018,C&M-GMS DES Minor Surgery,PRC DELEGATED CO-COMMISSIONING,MEDICAL CENTRE CRYSTAL PEAKS,21010940,"5,085.00 "
Department of Health,NHS Sheffield CCG,28/02/2018,C&M-GMS Global Sum,PRC DELEGATED CO-COMMISSIONING,MEDICAL CENTRE CRYSTAL PEAKS,21010940,"43,614.85 "
Department of Health,NHS Sheffield CCG,28/02/2018,C&M-GMS MPIG Correction Factor,PRC DELEGATED CO-COMMISSIONING,MEDICAL CENTRE CRYSTAL PEAKS,21010940,"1,697.01 "
Department of Health,NHS Sheffield CCG,28/02/2018,C&M-GMS Prem Notional Rent,PRC DELEGATED CO-COMMISSIONING,MEDICAL CENTRE CRYSTAL PEAKS,21010940,270.00 
Department of Health,NHS Sheffield CCG,28/02/2018,C&M-GMS Prem Water Rates,PRC DELEGATED CO-COMMISSIONING,MEDICAL CENTRE CRYSTAL PEAKS,21010940,87.52 
Department of Health,NHS Sheffield CCG,28/02/2018,C&M-GMS Prof Fees Prescribing,PRC DELEGATED CO-COMMISSIONING,MEDICAL CENTRE CRYSTAL PEAKS,21010940,"1,007.31 "
Department of Health,NHS Sheffield CCG,28/02/2018,C&M-GMS QOF Aspiration,PRC DELEGATED CO-COMMISSIONING,MEDICAL CENTRE CRYSTAL PEAKS,21010940,"6,023.36 "
Department of Health,NHS Sheffield CCG,28/02/2018,C&M-GMS Cost of Drugs -Prescribing,LOCAL ENHANCED SERVICES,MILL ROAD SURGERY SHEFFIELD,21010948,797.10 
Department of Health,NHS Sheffield CCG,28/02/2018,C&M-GMS DES Learn Dsblty Hlth Chk,PRC DELEGATED CO-COMMISSIONING,MILL ROAD SURGERY SHEFFIELD,21010948,560.00 
Department of Health,NHS Sheffield CCG,28/02/2018,C&M-GMS DES Minor Surgery,PRC DELEGATED CO-COMMISSIONING,MILL ROAD SURGERY SHEFFIELD,21010948,"1,755.00 "
Department of Health,NHS Sheffield CCG,28/02/2018,C&M-GMS Global Sum,PRC DELEGATED CO-COMMISSIONING,MILL ROAD SURGERY SHEFFIELD,21010948,"38,254.51 "
Department of Health,NHS Sheffield CCG,28/02/2018,C&M-GMS MPIG Correction Factor,PRC DELEGATED CO-COMMISSIONING,MILL ROAD SURGERY SHEFFIELD,21010948,183.06 
Department of Health,NHS Sheffield CCG,28/02/2018,C&M-GMS Prem Notional Rent,PRC DELEGATED CO-COMMISSIONING,MILL ROAD SURGERY SHEFFIELD,21010948,"4,587.50 "
Department of Health,NHS Sheffield CCG,28/02/2018,C&M-GMS Prof Fees Prescribing,PRC DELEGATED CO-COMMISSIONING,MILL ROAD SURGERY SHEFFIELD,21010948,161.26 
Department of Health,NHS Sheffield CCG,28/02/2018,C&M-GMS QOF Aspiration,PRC DELEGATED CO-COMMISSIONING,MILL ROAD SURGERY SHEFFIELD,21010948,"5,445.09 "
Department of Health,NHS Sheffield CCG,28/02/2018,C&M-PMS Contract Value,PRC DELEGATED CO-COMMISSIONING,MOSBOROUGH HEALTH CENTRE,20828580,"45,903.40 "
Department of Health,NHS Sheffield CCG,28/02/2018,C&M-PMS DES Minor Surgery,PRC DELEGATED CO-COMMISSIONING,MOSBOROUGH HEALTH CENTRE,20828580,"1,160.00 "
Department of Health,NHS Sheffield CCG,28/02/2018,C&M-PMS Funding Differential Review,PRC DELEGATED CO-COMMISSIONING,MOSBOROUGH HEALTH CENTRE,20828580,"1,253.00 "
Department of Health,NHS Sheffield CCG,28/02/2018,C&M-PMS Out of Hours Opt Outs,PRC DELEGATED CO-COMMISSIONING,MOSBOROUGH HEALTH CENTRE,20828580,36.01 
Department of Health,NHS Sheffield CCG,28/02/2018,C&M-PMS Prem Notional Rent,PRC DELEGATED CO-COMMISSIONING,MOSBOROUGH HEALTH CENTRE,20828580,"4,091.67 "
Department of Health,NHS Sheffield CCG,28/02/2018,C&M-PMS Prem Water Rates,PRC DELEGATED CO-COMMISSIONING,MOSBOROUGH HEALTH CENTRE,20828580,54.41 
Department of Health,NHS Sheffield CCG,28/02/2018,C&M-PMS QOF Aspiration,PRC DELEGATED CO-COMMISSIONING,MOSBOROUGH HEALTH CENTRE,20828580,"6,017.44 "
Department of Health,NHS Sheffield CCG,28/02/2018,C&M-PMS Contract Value,PRC DELEGATED CO-COMMISSIONING,NETHERGREEN SURGERY,20828583,"60,420.72 "
Department of Health,NHS Sheffield CCG,28/02/2018,C&M-PMS DES Learn Dsblty Hlth Chk,PRC DELEGATED CO-COMMISSIONING,NETHERGREEN SURGERY,20828583,"1,400.00 "
Department of Health,NHS Sheffield CCG,28/02/2018,C&M-PMS DES Minor Surgery,PRC DELEGATED CO-COMMISSIONING,NETHERGREEN SURGERY,20828583,"2,140.00 "
Department of Health,NHS Sheffield CCG,28/02/2018,C&M-PMS Funding Differential Review,PRC DELEGATED CO-COMMISSIONING,NETHERGREEN SURGERY,20828583,"1,876.58 "
Department of Health,NHS Sheffield CCG,28/02/2018,C&M-PMS Out of Hours Opt Outs,PRC DELEGATED CO-COMMISSIONING,NETHERGREEN SURGERY,20828583,53.02 
Department of Health,NHS Sheffield CCG,28/02/2018,C&M-PMS Prem Cost Rent,PRC DELEGATED CO-COMMISSIONING,NETHERGREEN SURGERY,20828583,"5,057.33 "
Department of Health,NHS Sheffield CCG,28/02/2018,C&M-PMS QOF Aspiration,PRC DELEGATED CO-COMMISSIONING,NETHERGREEN SURGERY,20828583,"6,339.79 "
Department of Health,NHS Sheffield CCG,28/02/2018,Cont Care-Physical Disab (<65),CHC ADULT FULLY FUNDED,NEVILLE HEALTH CARE LTD,20811097,"26,490.12 "
Department of Health,NHS Sheffield CCG,28/02/2018,External Consultancy Fees,External Consultancy,NEWTON EUROPE LTD,20984580,"34,460.60 "
Department of Health,NHS Sheffield CCG,28/02/2018,Healthcare Srv Rec CCG,CLINICAL LEADS,NHS DONCASTER CCG,20924747,"42,571.00 "
Department of Health,NHS Sheffield CCG,28/02/2018,C&M-GMS Cost of Drugs -Prescribing,LOCAL ENHANCED SERVICES,NORFOLK PARK HEALTH CENTRE,21010953,749.70 
Department of Health,NHS Sheffield CCG,28/02/2018,C&M-GMS DES Learn Dsblty Hlth Chk,PRC DELEGATED CO-COMMISSIONING,NORFOLK PARK HEALTH CENTRE,21010953,280.00 
Department of Health,NHS Sheffield CCG,28/02/2018,C&M-GMS DES Minor Surgery,PRC DELEGATED CO-COMMISSIONING,NORFOLK PARK HEALTH CENTRE,21010953,750.00 
Department of Health,NHS Sheffield CCG,28/02/2018,C&M-GMS Global Sum,PRC DELEGATED CO-COMMISSIONING,NORFOLK PARK HEALTH CENTRE,21010953,"34,538.88 "
Department of Health,NHS Sheffield CCG,28/02/2018,C&M-GMS MPIG Correction Factor,PRC DELEGATED CO-COMMISSIONING,NORFOLK PARK HEALTH CENTRE,21010953,"1,386.91 "
Department of Health,NHS Sheffield CCG,28/02/2018,C&M-GMS Prem Healthcentre Rent,PRC DELEGATED CO-COMMISSIONING,NORFOLK PARK HEALTH CENTRE,21010953,"23,010.32 "
Department of Health,NHS Sheffield CCG,28/02/2018,C&M-GMS Prof Fees Prescribing,PRC DELEGATED CO-COMMISSIONING,NORFOLK PARK HEALTH CENTRE,21010953,123.71 
Department of Health,NHS Sheffield CCG,28/02/2018,C&M-GMS QOF Aspiration,PRC DELEGATED CO-COMMISSIONING,NORFOLK PARK HEALTH CENTRE,21010953,"4,068.39 "
Department of Health,NHS Sheffield CCG,28/02/2018,C&M-GMS Cost of Drugs -Prescribing,LOCAL ENHANCED SERVICES,NORWOOD MEDICAL CENTRE SHEFFIELD,21010955,309.88 
Department of Health,NHS Sheffield CCG,28/02/2018,C&M-GMS DES Learn Dsblty Hlth Chk,PRC DELEGATED CO-COMMISSIONING,NORWOOD MEDICAL CENTRE SHEFFIELD,21010955,840.00 
Department of Health,NHS Sheffield CCG,28/02/2018,C&M-GMS DES Minor Surgery,PRC DELEGATED CO-COMMISSIONING,NORWOOD MEDICAL CENTRE SHEFFIELD,21010955,"2,760.00 "
Department of Health,NHS Sheffield CCG,28/02/2018,C&M-GMS Global Sum,PRC DELEGATED CO-COMMISSIONING,NORWOOD MEDICAL CENTRE SHEFFIELD,21010955,"61,119.87 "
Department of Health,NHS Sheffield CCG,28/02/2018,C&M-GMS Prem Notional Rent,PRC DELEGATED CO-COMMISSIONING,NORWOOD MEDICAL CENTRE SHEFFIELD,21010955,"5,187.50 "
Department of Health,NHS Sheffield CCG,28/02/2018,C&M-GMS Prem Rates,PRC DELEGATED CO-COMMISSIONING,NORWOOD MEDICAL CENTRE SHEFFIELD,21010955,"10,392.35 "
Department of Health,NHS Sheffield CCG,28/02/2018,C&M-GMS Prem Water Rates,PRC DELEGATED CO-COMMISSIONING,NORWOOD MEDICAL CENTRE SHEFFIELD,21010955,313.53 
Department of Health,NHS Sheffield CCG,28/02/2018,C&M-GMS Prof Fees Prescribing,PRC DELEGATED CO-COMMISSIONING,NORWOOD MEDICAL CENTRE SHEFFIELD,21010955,108.25 
Department of Health,NHS Sheffield CCG,28/02/2018,C&M-GMS QOF Aspiration,PRC DELEGATED CO-COMMISSIONING,NORWOOD MEDICAL CENTRE SHEFFIELD,21010955,"8,411.55 "
Department of Health,NHS Sheffield CCG,28/02/2018,Clinical&Medical-Independent Sector,ACUTE COMMISSIONING,ONEHEALTH GROUP,20842764,"90,000.00 "
Department of Health,NHS Sheffield CCG,28/02/2018,C&M-GMS Cost of Drugs -Dispensing,LOCAL ENHANCED SERVICES,OUGHTIBRIDGE SURGERY,21010960,"29,753.43 "
Department of Health,NHS Sheffield CCG,28/02/2018,C&M-GMS DES Minor Surgery,PRC DELEGATED CO-COMMISSIONING,OUGHTIBRIDGE SURGERY,21010960,640.00 
Department of Health,NHS Sheffield CCG,28/02/2018,C&M-GMS Global Sum,PRC DELEGATED CO-COMMISSIONING,OUGHTIBRIDGE SURGERY,21010960,"41,325.76 "
Department of Health,NHS Sheffield CCG,28/02/2018,C&M-GMS Prem Notional Rent,PRC DELEGATED CO-COMMISSIONING,OUGHTIBRIDGE SURGERY,21010960,"3,957.33 "
Department of Health,NHS Sheffield CCG,28/02/2018,C&M-GMS Prem Rates,PRC DELEGATED CO-COMMISSIONING,OUGHTIBRIDGE SURGERY,21010960,"7,015.88 "
Department of Health,NHS Sheffield CCG,28/02/2018,C&M-GMS Prof Fees Dispensing,PRC DELEGATED CO-COMMISSIONING,OUGHTIBRIDGE SURGERY,21010960,"4,631.86 "
Department of Health,NHS Sheffield CCG,28/02/2018,C&M-GMS PrscrptnChrgsColl&RmttdbyGP,LOCAL ENHANCED SERVICES,OUGHTIBRIDGE SURGERY,21010960,507.40 
Department of Health,NHS Sheffield CCG,28/02/2018,C&M-GMS QOF Aspiration,PRC DELEGATED CO-COMMISSIONING,OUGHTIBRIDGE SURGERY,21010960,"4,693.88 "
Department of Health,NHS Sheffield CCG,28/02/2018,C&M-PMS Contract Value,PRC DELEGATED CO-COMMISSIONING,OWLTHORPE MEDICAL CENTRE,20828588,"36,000.73 "
Department of Health,NHS Sheffield CCG,28/02/2018,C&M-PMS DES Minor Surgery,PRC DELEGATED CO-COMMISSIONING,OWLTHORPE MEDICAL CENTRE,20828588,735.00 
Department of Health,NHS Sheffield CCG,28/02/2018,C&M-PMS Funding Differential Review,PRC DELEGATED CO-COMMISSIONING,OWLTHORPE MEDICAL CENTRE,20828588,"1,499.67 "
Department of Health,NHS Sheffield CCG,28/02/2018,C&M-PMS Out of Hours Opt Outs,PRC DELEGATED CO-COMMISSIONING,OWLTHORPE MEDICAL CENTRE,20828588,259.60 
Department of Health,NHS Sheffield CCG,28/02/2018,C&M-PMS Prem Actual Rent,PRC DELEGATED CO-COMMISSIONING,OWLTHORPE MEDICAL CENTRE,20828588,"7,539.58 "
Department of Health,NHS Sheffield CCG,28/02/2018,C&M-PMS Prem Rates,PRC DELEGATED CO-COMMISSIONING,OWLTHORPE MEDICAL CENTRE,20828588,"10,392.35 "
Department of Health,NHS Sheffield CCG,28/02/2018,C&M-PMS QOF Aspiration,PRC DELEGATED CO-COMMISSIONING,OWLTHORPE MEDICAL CENTRE,20828588,"4,031.40 "
Department of Health,NHS Sheffield CCG,28/02/2018,C&M-PMS Contract Value,PRC DELEGATED CO-COMMISSIONING,PAGE HALL MEDICAL CENTRE,20856811,"53,969.79 "
Department of Health,NHS Sheffield CCG,28/02/2018,C&M-PMS DES Learn Dsblty Hlth Chk,PRC DELEGATED CO-COMMISSIONING,PAGE HALL MEDICAL CENTRE,20856811,"1,540.00 "
Department of Health,NHS Sheffield CCG,28/02/2018,C&M-PMS DES Minor Surgery,PRC DELEGATED CO-COMMISSIONING,PAGE HALL MEDICAL CENTRE,20856811,320.00 
Department of Health,NHS Sheffield CCG,28/02/2018,C&M-PMS Funding Differential Review,PRC DELEGATED CO-COMMISSIONING,PAGE HALL MEDICAL CENTRE,20856811,"5,391.08 "
Department of Health,NHS Sheffield CCG,28/02/2018,C&M-PMS Out of Hours Opt Outs,PRC DELEGATED CO-COMMISSIONING,PAGE HALL MEDICAL CENTRE,20856811,16.27 
Department of Health,NHS Sheffield CCG,28/02/2018,C&M-PMS PCO Other,PRC DELEGATED CO-COMMISSIONING,PAGE HALL MEDICAL CENTRE,20856811,"4,526.00 "
Department of Health,NHS Sheffield CCG,28/02/2018,C&M-PMS Prem Actual Rent,PRC DELEGATED CO-COMMISSIONING,PAGE HALL MEDICAL CENTRE,20856811,135.00 
Department of Health,NHS Sheffield CCG,28/02/2018,C&M-PMS Prem Notional Rent,PRC DELEGATED CO-COMMISSIONING,PAGE HALL MEDICAL CENTRE,20856811,"4,833.33 "
Department of Health,NHS Sheffield CCG,28/02/2018,C&M-PMS QOF Aspiration,PRC DELEGATED CO-COMMISSIONING,PAGE HALL MEDICAL CENTRE,20856811,"5,102.24 "
Department of Health,NHS Sheffield CCG,28/02/2018,C&M-PMS Contract Value,PRC DELEGATED CO-COMMISSIONING,PARK HEALTH CENTRE,20856812,"40,093.21 "
Department of Health,NHS Sheffield CCG,28/02/2018,C&M-PMS Funding Differential Review,PRC DELEGATED CO-COMMISSIONING,PARK HEALTH CENTRE,20856812,"3,290.17 "
Department of Health,NHS Sheffield CCG,28/02/2018,C&M-PMS Out of Hours Opt Outs,PRC DELEGATED CO-COMMISSIONING,PARK HEALTH CENTRE,20856812,83.19 
Department of Health,NHS Sheffield CCG,28/02/2018,C&M-PMS PCO Locum Adop/Pat/Mat,PRC DELEGATED CO-COMMISSIONING,PARK HEALTH CENTRE,20856812,"10,405.08 "
Department of Health,NHS Sheffield CCG,28/02/2018,C&M-PMS PCO Locum Sickness,PRC DELEGATED CO-COMMISSIONING,PARK HEALTH CENTRE,20856812,"3,468.36 "
Department of Health,NHS Sheffield CCG,28/02/2018,C&M-PMS Prem Notional Rent,PRC DELEGATED CO-COMMISSIONING,PARK HEALTH CENTRE,20856812,"6,000.00 "
Department of Health,NHS Sheffield CCG,28/02/2018,C&M-PMS Prem Rates,PRC DELEGATED CO-COMMISSIONING,PARK HEALTH CENTRE,20856812,"8,053.16 "
Department of Health,NHS Sheffield CCG,28/02/2018,C&M-PMS QOF Aspiration,PRC DELEGATED CO-COMMISSIONING,PARK HEALTH CENTRE,20856812,"4,293.17 "
Department of Health,NHS Sheffield CCG,28/02/2018,C&M-PMS Contract Value,PRC DELEGATED CO-COMMISSIONING,PITSMOOR SURGERY,20828594,"76,031.60 "
Department of Health,NHS Sheffield CCG,28/02/2018,C&M-PMS DES Learn Dsblty Hlth Chk,PRC DELEGATED CO-COMMISSIONING,PITSMOOR SURGERY,20828594,"2,100.00 "
Department of Health,NHS Sheffield CCG,28/02/2018,C&M-PMS DES Minor Surgery,PRC DELEGATED CO-COMMISSIONING,PITSMOOR SURGERY,20828594,"1,100.00 "
Department of Health,NHS Sheffield CCG,28/02/2018,C&M-PMS Out of Hours Opt Outs,PRC DELEGATED CO-COMMISSIONING,PITSMOOR SURGERY,20828594,101.80 
Department of Health,NHS Sheffield CCG,28/02/2018,C&M-PMS Prem Notional Rent,PRC DELEGATED CO-COMMISSIONING,PITSMOOR SURGERY,20828594,"9,650.00 "
Department of Health,NHS Sheffield CCG,28/02/2018,C&M-PMS Prem Rates,PRC DELEGATED CO-COMMISSIONING,PITSMOOR SURGERY,20828594,"16,312.04 "
Department of Health,NHS Sheffield CCG,28/02/2018,C&M-PMS QOF Aspiration,PRC DELEGATED CO-COMMISSIONING,PITSMOOR SURGERY,20828594,"7,463.31 "
Department of Health,NHS Sheffield CCG,28/02/2018,C&M-PMS Contract Value,PRC DELEGATED CO-COMMISSIONING,PORTER BROOK MEDICAL CENTRE,20828595,"(11,400.31)"
Department of Health,NHS Sheffield CCG,28/02/2018,C&M-PMS GP Statutory Levy,PRC DELEGATED CO-COMMISSIONING,PORTER BROOK MEDICAL CENTRE,20828595,(876.69)
Department of Health,NHS Sheffield CCG,28/02/2018,C&M-PMS Out of Hours Opt Outs,PRC DELEGATED CO-COMMISSIONING,PORTER BROOK MEDICAL CENTRE,20828595,"(7,926.46)"
Department of Health,NHS Sheffield CCG,28/02/2018,C&M-PMS Voluntary Levy,PRC DELEGATED CO-COMMISSIONING,PORTER BROOK MEDICAL CENTRE,20828595,(146.12)
Department of Health,NHS Sheffield CCG,28/02/2018,C&M-PMS Contract Value,PRC DELEGATED CO-COMMISSIONING,PORTER BROOK MEDICAL CENTRE,20828596,"167,759.15 "
Department of Health,NHS Sheffield CCG,28/02/2018,C&M-PMS DES Learn Dsblty Hlth Chk,PRC DELEGATED CO-COMMISSIONING,PORTER BROOK MEDICAL CENTRE,20828596,420.00 
Department of Health,NHS Sheffield CCG,28/02/2018,C&M-PMS DES Minor Surgery,PRC DELEGATED CO-COMMISSIONING,PORTER BROOK MEDICAL CENTRE,20828596,"6,735.00 "
Department of Health,NHS Sheffield CCG,28/02/2018,C&M-PMS Funding Differential Review,PRC DELEGATED CO-COMMISSIONING,PORTER BROOK MEDICAL CENTRE,20828596,"5,112.08 "
Department of Health,NHS Sheffield CCG,28/02/2018,C&M-PMS Out of Hours Opt Outs,PRC DELEGATED CO-COMMISSIONING,PORTER BROOK MEDICAL CENTRE,20828596,567.04 
Department of Health,NHS Sheffield CCG,28/02/2018,C&M-PMS Prem Actual Rent,PRC DELEGATED CO-COMMISSIONING,PORTER BROOK MEDICAL CENTRE,20828596,"1,333.33 "
Department of Health,NHS Sheffield CCG,28/02/2018,C&M-PMS Prem Notional Rent,PRC DELEGATED CO-COMMISSIONING,PORTER BROOK MEDICAL CENTRE,20828596,"9,666.66 "
Department of Health,NHS Sheffield CCG,28/02/2018,C&M-PMS QOF Aspiration,PRC DELEGATED CO-COMMISSIONING,PORTER BROOK MEDICAL CENTRE,20828596,"8,899.04 "
Department of Health,NHS Sheffield CCG,28/02/2018,Clinical&Medical-Commercial Sector,PATIENT TRANSPORT,PREMIER CARE DIRECT LTD,20924780,"91,807.22 "
Department of Health,NHS Sheffield CCG,28/02/2018,Clinical&Medical-Commercial Sector,PATIENT TRANSPORT,PREMIER CARE DIRECT LTD,20964832,"62,019.96 "
Department of Health,NHS Sheffield CCG,28/02/2018,C&M-APMS DES Extended Hours Access,GP FORWARD VIEW,PRIMARY CARE SHEFFIELD LTD,20842928,"289,935.17 "
Department of Health,NHS Sheffield CCG,28/02/2018,C&M-GMS LES Basket of Procedures,LOCAL ENHANCED SERVICES,PRIMARY CARE SHEFFIELD LTD,20984723,"26,594.84 "
Department of Health,NHS Sheffield CCG,28/02/2018,Cont Care-Physical Disab (<65),CHC ADULT FULLY FUNDED,PRIORY GROUP LTD,20811069,"25,780.93 "
Department of Health,NHS Sheffield CCG,28/02/2018,C&M-PMS Contract Value,PRC DELEGATED CO-COMMISSIONING,RICHMOND MEDICAL CENTRE,20828598,"62,865.90 "
Department of Health,NHS Sheffield CCG,28/02/2018,C&M-PMS DES Learn Dsblty Hlth Chk,PRC DELEGATED CO-COMMISSIONING,RICHMOND MEDICAL CENTRE,20828598,280.00 
Department of Health,NHS Sheffield CCG,28/02/2018,C&M-PMS DES Minor Surgery,PRC DELEGATED CO-COMMISSIONING,RICHMOND MEDICAL CENTRE,20828598,"2,625.00 "
Department of Health,NHS Sheffield CCG,28/02/2018,C&M-PMS Funding Differential Review,PRC DELEGATED CO-COMMISSIONING,RICHMOND MEDICAL CENTRE,20828598,"1,802.33 "
Department of Health,NHS Sheffield CCG,28/02/2018,C&M-PMS Prem Notional Rent,PRC DELEGATED CO-COMMISSIONING,RICHMOND MEDICAL CENTRE,20828598,"4,927.19 "
Department of Health,NHS Sheffield CCG,28/02/2018,C&M-PMS QOF Aspiration,PRC DELEGATED CO-COMMISSIONING,RICHMOND MEDICAL CENTRE,20828598,"7,754.77 "
Department of Health,NHS Sheffield CCG,28/02/2018,Cont Care-Physical Disab (<65),CHC ADULT FULLY FUNDED,ROSEBERRY CARE CENTRES,20811022,"28,146.24 "
Department of Health,NHS Sheffield CCG,28/02/2018,Cont Care-Physical Disab (<65),CHC ADULT FULLY FUNDED,ROSEBERRY CARE CENTRES,20811064,"27,643.49 "
Department of Health,NHS Sheffield CCG,28/02/2018,Cont Care-Funded Nursing Care Allow,FUNDED NURSING CARE,ROSEBERRY CARE CENTRES,20811092,"27,511.31 "
Department of Health,NHS Sheffield CCG,28/02/2018,Hcare Srv Rec Fdtn Trust-Contract Baseline,ACUTE COMMISSIONING,ROTHERHAM NHS FOUNDATION TRUST,20795477,"429,401.00 "
Department of Health,NHS Sheffield CCG,28/02/2018,C&M-PMS Contract Value,PRC DELEGATED CO-COMMISSIONING,RUSTLINGS ROAD MEDICAL CENTRE,20828602,"26,762.24 "
Department of Health,NHS Sheffield CCG,28/02/2018,C&M-PMS Funding Differential Review,PRC DELEGATED CO-COMMISSIONING,RUSTLINGS ROAD MEDICAL CENTRE,20828602,"1,235.92 "
Department of Health,NHS Sheffield CCG,28/02/2018,C&M-PMS Out of Hours Opt Outs,PRC DELEGATED CO-COMMISSIONING,RUSTLINGS ROAD MEDICAL CENTRE,20828602,16.41 
Department of Health,NHS Sheffield CCG,28/02/2018,C&M-PMS Prem Notional Rent,PRC DELEGATED CO-COMMISSIONING,RUSTLINGS ROAD MEDICAL CENTRE,20828602,"1,167.92 "
Department of Health,NHS Sheffield CCG,28/02/2018,C&M-PMS QOF Aspiration,PRC DELEGATED CO-COMMISSIONING,RUSTLINGS ROAD MEDICAL CENTRE,20828602,"2,481.56 "
Department of Health,NHS Sheffield CCG,28/02/2018,Cont Care-Physical Disab (<65),CHC ADULT FULLY FUNDED,SEVEN HILLS NURSING HOME,20811067,"31,242.48 "
Department of Health,NHS Sheffield CCG,28/02/2018,C&M-GMS Cost of Drugs -Prescribing,LOCAL ENHANCED SERVICES,SHARROW LANE MEDICAL CENTRE,21010965,250.01 
Department of Health,NHS Sheffield CCG,28/02/2018,C&M-GMS DES Minor Surgery,PRC DELEGATED CO-COMMISSIONING,SHARROW LANE MEDICAL CENTRE,21010965,200.00 
Department of Health,NHS Sheffield CCG,28/02/2018,C&M-GMS Global Sum,PRC DELEGATED CO-COMMISSIONING,SHARROW LANE MEDICAL CENTRE,21010965,"22,033.12 "
Department of Health,NHS Sheffield CCG,28/02/2018,C&M-GMS MPIG Correction Factor,PRC DELEGATED CO-COMMISSIONING,SHARROW LANE MEDICAL CENTRE,21010965,"2,940.48 "
Department of Health,NHS Sheffield CCG,28/02/2018,C&M-GMS Prem Notional Rent,PRC DELEGATED CO-COMMISSIONING,SHARROW LANE MEDICAL CENTRE,21010965,"2,658.33 "
Department of Health,NHS Sheffield CCG,28/02/2018,C&M-GMS Prof Fees Prescribing,PRC DELEGATED CO-COMMISSIONING,SHARROW LANE MEDICAL CENTRE,21010965,53.02 
Department of Health,NHS Sheffield CCG,28/02/2018,C&M-GMS QOF Aspiration,PRC DELEGATED CO-COMMISSIONING,SHARROW LANE MEDICAL CENTRE,21010965,"2,727.76 "
Department of Health,NHS Sheffield CCG,28/02/2018,Hcare Srv Rec Fdtn Trust-CQUIN,ACUTE CHILDRENS SERVICES,SHEFFIELD CHILDRENS NHS FOUNDATION TRUST,20795471,"32,706.00 "
Department of Health,NHS Sheffield CCG,28/02/2018,Hcare Srv Rec Fdtn Trust-CQUIN,COMMUNITY SERVICES,SHEFFIELD CHILDRENS NHS FOUNDATION TRUST,20795471,"3,728.00 "
Department of Health,NHS Sheffield CCG,28/02/2018,Hcare Srv Rec Fdtn Trust-Contract Baseline,ACUTE CHILDRENS SERVICES,SHEFFIELD CHILDRENS NHS FOUNDATION TRUST,20795471,"235,977.00 "
Department of Health,NHS Sheffield CCG,28/02/2018,Hcare Srv Rec Fdtn Trust-Contract Baseline,CHILD AND ADOLESCENT MENTAL HEALTH,SHEFFIELD CHILDRENS NHS FOUNDATION TRUST,20795471,"367,086.00 "
Department of Health,NHS Sheffield CCG,28/02/2018,Hcare Srv Rec Fdtn Trust-Contract Baseline,COMMUNITY SERVICES,SHEFFIELD CHILDRENS NHS FOUNDATION TRUST,20795471,"298,241.00 "
Department of Health,NHS Sheffield CCG,28/02/2018,Hcare Srv Rec Fdtn Trust-Contract Baseline,HIGH COST DRUGS,SHEFFIELD CHILDRENS NHS FOUNDATION TRUST,20795471,"40,649.00 "
Department of Health,NHS Sheffield CCG,28/02/2018,Hcare Srv Rec Fdtn Trust-Contract Baseline,MENTAL HEALTH CONTRACTS,SHEFFIELD CHILDRENS NHS FOUNDATION TRUST,20795471,"5,277.00 "
Department of Health,NHS Sheffield CCG,28/02/2018,Hcare Srv Rec Fdtn Trust-Contract Baseline,PLANNED CARE,SHEFFIELD CHILDRENS NHS FOUNDATION TRUST,20795471,"965,735.00 "
Department of Health,NHS Sheffield CCG,28/02/2018,Hcare Srv Rec Fdtn Trust-Contract Baseline,SAFEGUARDING,SHEFFIELD CHILDRENS NHS FOUNDATION TRUST,20795471,"29,800.00 "
Department of Health,NHS Sheffield CCG,28/02/2018,Hcare Srv Rec Fdtn Trust-Contract Baseline,URGENT CARE,SHEFFIELD CHILDRENS NHS FOUNDATION TRUST,20795471,"988,358.00 "
Department of Health,NHS Sheffield CCG,28/02/2018,Hcare Srv Rec Fdtn Trust-Contract Baseline,ACUTE CHILDRENS SERVICES,SHEFFIELD CHILDRENS NHS FOUNDATION TRUST,20964698,"250,000.00 "
Department of Health,NHS Sheffield CCG,28/02/2018,Hcare Srv Rec Fdtn Trust-CQUIN,ACUTE CHILDRENS SERVICES,SHEFFIELD CHILDRENS NHS FOUNDATION TRUST,21073026,599.00 
Department of Health,NHS Sheffield CCG,28/02/2018,Hcare Srv Rec Fdtn Trust-Contract Baseline,ACUTE CHILDRENS SERVICES,SHEFFIELD CHILDRENS NHS FOUNDATION TRUST,21073026,"12,610.68 "
Department of Health,NHS Sheffield CCG,28/02/2018,Hcare Srv Rec Fdtn Trust-Contract Baseline,CHILD AND ADOLESCENT MENTAL HEALTH,SHEFFIELD CHILDRENS NHS FOUNDATION TRUST,21073026,"(1,000.00)"
Department of Health,NHS Sheffield CCG,28/02/2018,Hcare Srv Rec Fdtn Trust-Contract Baseline,HIGH COST DRUGS,SHEFFIELD CHILDRENS NHS FOUNDATION TRUST,21073026,"9,268.00 "
Department of Health,NHS Sheffield CCG,28/02/2018,Hcare Srv Rec Fdtn Trust-Contract Baseline,PLANNED CARE,SHEFFIELD CHILDRENS NHS FOUNDATION TRUST,21073026,"1,779.00 "
Department of Health,NHS Sheffield CCG,28/02/2018,Hcare Srv Rec Fdtn Trust-Contract Baseline,SAFEGUARDING,SHEFFIELD CHILDRENS NHS FOUNDATION TRUST,21073026,"3,831.00 "
Department of Health,NHS Sheffield CCG,28/02/2018,Hcare Srv Rec Fdtn Trust-Contract Baseline,URGENT CARE,SHEFFIELD CHILDRENS NHS FOUNDATION TRUST,21073026,"5,772.00 "
Department of Health,NHS Sheffield CCG,28/02/2018,Hcare Srv Rec Fdtn Trust-CQUIN,ACUTE CHILDRENS SERVICES,SHEFFIELD CHILDRENS NHS FOUNDATION TRUST,21073028,"34,936.00 "
Department of Health,NHS Sheffield CCG,28/02/2018,Hcare Srv Rec Fdtn Trust-CQUIN,COMMUNITY SERVICES,SHEFFIELD CHILDRENS NHS FOUNDATION TRUST,21073028,"3,728.00 "
Department of Health,NHS Sheffield CCG,28/02/2018,Hcare Srv Rec Fdtn Trust-Contract Baseline,ACUTE CHILDRENS SERVICES,SHEFFIELD CHILDRENS NHS FOUNDATION TRUST,21073028,"32,011.33 "
Department of Health,NHS Sheffield CCG,28/02/2018,Hcare Srv Rec Fdtn Trust-Contract Baseline,CHILD AND ADOLESCENT MENTAL HEALTH,SHEFFIELD CHILDRENS NHS FOUNDATION TRUST,21073028,"(1,000.00)"
Department of Health,NHS Sheffield CCG,28/02/2018,Hcare Srv Rec Fdtn Trust-Contract Baseline,HIGH COST DRUGS,SHEFFIELD CHILDRENS NHS FOUNDATION TRUST,21073028,"6,591.00 "
Department of Health,NHS Sheffield CCG,28/02/2018,Hcare Srv Rec Fdtn Trust-Contract Baseline,MENTAL HEALTH CONTRACTS,SHEFFIELD CHILDRENS NHS FOUNDATION TRUST,21073028,"(2,827.00)"
Department of Health,NHS Sheffield CCG,28/02/2018,Hcare Srv Rec Fdtn Trust-Contract Baseline,PLANNED CARE,SHEFFIELD CHILDRENS NHS FOUNDATION TRUST,21073028,"44,122.00 "
Department of Health,NHS Sheffield CCG,28/02/2018,Hcare Srv Rec Fdtn Trust-Contract Baseline,SAFEGUARDING,SHEFFIELD CHILDRENS NHS FOUNDATION TRUST,21073028,"3,831.00 "
Department of Health,NHS Sheffield CCG,28/02/2018,Hcare Srv Rec Fdtn Trust-Contract Baseline,URGENT CARE,SHEFFIELD CHILDRENS NHS FOUNDATION TRUST,21073028,"3,944.00 "
Department of Health,NHS Sheffield CCG,28/02/2018,Clinical&Medical-Othe Public Sector,COMMUNITY SERVICES,SHEFFIELD CITY COUNCIL,20795499,"21,831.00 "
Department of Health,NHS Sheffield CCG,28/02/2018,Clinical&Medical-Othe Public Sector,MENTAL HEALTH SERVICES - COLLABORATIVE COMMISSIONING,SHEFFIELD CITY COUNCIL,20795499,"16,919.00 "
Department of Health,NHS Sheffield CCG,28/02/2018,Clinical&Medical-Othe Public Sector,REABLEMENT,SHEFFIELD CITY COUNCIL,20795499,"160,417.00 "
Department of Health,NHS Sheffield CCG,28/02/2018,Clinical&Medical-Othe Public Sector,SAFEGUARDING,SHEFFIELD CITY COUNCIL,20795499,"15,324.00 "
Department of Health,NHS Sheffield CCG,28/02/2018,Soc Care-Joint H&C Teams/Working,INTERMEDIATE CARE,SHEFFIELD CITY COUNCIL,20795499,"88,060.00 "
Department of Health,NHS Sheffield CCG,28/02/2018,Soc Care-Learn Disab Servs,LEARNING DIFFICULTIES,SHEFFIELD CITY COUNCIL,20795499,"166,667.00 "
Department of Health,NHS Sheffield CCG,28/02/2018,Soc Care-Other Soc Care,COMMUNITY SERVICES,SHEFFIELD CITY COUNCIL,20795499,"467,750.00 "
Department of Health,NHS Sheffield CCG,28/02/2018,Soc Care-Re-ablement services,REABLEMENT,SHEFFIELD CITY COUNCIL,20795499,"63,387.00 "
Department of Health,NHS Sheffield CCG,28/02/2018,Soc Care-Support Prim Care,COMMUNITY SERVICES,SHEFFIELD CITY COUNCIL,20795499,"55,000.00 "
Department of Health,NHS Sheffield CCG,28/02/2018,Cont Care-Physical Disab (65+),CHC ADULT FULLY FUNDED,SHEFFIELD CITY COUNCIL,20871687,"679,699.08 "
Department of Health,NHS Sheffield CCG,28/02/2018,Cont Care- Children,CHC CHILDREN,SHEFFIELD CITY COUNCIL,20964788,"45,443.98 "
Department of Health,NHS Sheffield CCG,28/02/2018,C&M-APMS Contract Value,PRC DELEGATED CO-COMMISSIONING,SHEFFIELD HEALTH & SOCIAL CARE NHS FOUNDATION TRUST,20833296,"119,696.37 "
Department of Health,NHS Sheffield CCG,28/02/2018,C&M-APMS DES Minor Surgery,PRC DELEGATED CO-COMMISSIONING,SHEFFIELD HEALTH & SOCIAL CARE NHS FOUNDATION TRUST,20833296,320.00 
Department of Health,NHS Sheffield CCG,28/02/2018,C&M-APMS OOH Opt Outs,PRC DELEGATED CO-COMMISSIONING,SHEFFIELD HEALTH & SOCIAL CARE NHS FOUNDATION TRUST,20833296,95.52 
Department of Health,NHS Sheffield CCG,28/02/2018,C&M-APMS Prem Actual Rent,PRC DELEGATED CO-COMMISSIONING,SHEFFIELD HEALTH & SOCIAL CARE NHS FOUNDATION TRUST,20833296,"5,169.68 "
Department of Health,NHS Sheffield CCG,28/02/2018,C&M-APMS Prem Healthcentre Rent,PRC DELEGATED CO-COMMISSIONING,SHEFFIELD HEALTH & SOCIAL CARE NHS FOUNDATION TRUST,20833296,"60,362.95 "
Department of Health,NHS Sheffield CCG,28/02/2018,C&M-APMS Prem Notional Rent,PRC DELEGATED CO-COMMISSIONING,SHEFFIELD HEALTH & SOCIAL CARE NHS FOUNDATION TRUST,20833296,"2,804.17 "
Department of Health,NHS Sheffield CCG,28/02/2018,C&M-PMS QOF Aspiration,PRC DELEGATED CO-COMMISSIONING,SHEFFIELD HEALTH & SOCIAL CARE NHS FOUNDATION TRUST,20833296,"12,657.74 "
Department of Health,NHS Sheffield CCG,28/02/2018,C&M-APMS Contract Value,PRC DELEGATED CO-COMMISSIONING,SHEFFIELD HEALTH & SOCIAL CARE NHS FOUNDATION TRUST,20833300,"26,563.38 "
Department of Health,NHS Sheffield CCG,28/02/2018,C&M-APMS DES Minor Surgery,PRC DELEGATED CO-COMMISSIONING,SHEFFIELD HEALTH & SOCIAL CARE NHS FOUNDATION TRUST,20833300,40.00 
Department of Health,NHS Sheffield CCG,28/02/2018,C&M-APMS OOH Opt Outs,PRC DELEGATED CO-COMMISSIONING,SHEFFIELD HEALTH & SOCIAL CARE NHS FOUNDATION TRUST,20833300,54.64 
Department of Health,NHS Sheffield CCG,28/02/2018,C&M-PMS QOF Aspiration,PRC DELEGATED CO-COMMISSIONING,SHEFFIELD HEALTH & SOCIAL CARE NHS FOUNDATION TRUST,20833300,"1,256.00 "
Department of Health,NHS Sheffield CCG,28/02/2018,Hcare Srv Rec Fdtn Trust-Contract Baseline,MENTAL HEALTH CONTRACTS,SHEFFIELD HEALTH & SOCIAL CARE NHS FOUNDATION TRUST,20842874,"6,013,427.33 "
Department of Health,NHS Sheffield CCG,28/02/2018,Hcare Srv Rec Fdtn Trust-Contract Baseline,MENTAL HEALTH CONTRACTS,SHEFFIELD HEALTH & SOCIAL CARE NHS FOUNDATION TRUST,20871699,"43,493.80 "
Department of Health,NHS Sheffield CCG,28/02/2018,Cont Care-NHSFT-Adult 100% Funded,CHC ADULT FULLY FUNDED,SHEFFIELD HEALTH & SOCIAL CARE NHS FOUNDATION TRUST,21072895,"66,977.96 "
Department of Health,NHS Sheffield CCG,28/02/2018,Cont Care-NHSFT-Adult 100% Funded,CHC ADULT FULLY FUNDED,SHEFFIELD HEALTH & SOCIAL CARE NHS FOUNDATION TRUST,21072905,"236,256.12 "
Department of Health,NHS Sheffield CCG,28/02/2018,Cont Care-NHSFT-Adult 100% Funded,CHC ADULT FULLY FUNDED,SHEFFIELD HEALTH & SOCIAL CARE NHS FOUNDATION TRUST,21072942,"(66,977.96)"
Department of Health,NHS Sheffield CCG,28/02/2018,Hcare Srv Rec Fdtn Trust-Contract Baseline,ACUTE COMMISSIONING,SHEFFIELD TEACHING HOSPITALS NHS FOUNDATION TRUST,20795478,"26,312,885.00 "
Department of Health,NHS Sheffield CCG,28/02/2018,Hcare Srv Rec Fdtn Trust-Contract Baseline,ACUTE COMMISSIONING,SHEFFIELD TEACHING HOSPITALS NHS FOUNDATION TRUST,20795479,"316,657.00 "
Department of Health,NHS Sheffield CCG,28/02/2018,Hcare Srv Rec Fdtn Trust-Contract Baseline,ACUTE COMMISSIONING,SHEFFIELD TEACHING HOSPITALS NHS FOUNDATION TRUST,20795480,"3,826,134.00 "
Department of Health,NHS Sheffield CCG,28/02/2018,Hcare Srv Rec Fdtn Trust-Contract Baseline,ACUTE COMMISSIONING,SHEFFIELD TEACHING HOSPITALS NHS FOUNDATION TRUST,20795481,"1,101,688.00 "
Department of Health,NHS Sheffield CCG,28/02/2018,External Consultancy Fees,COUNSELLING SERVICES,SHEFFIELD TEACHING HOSPITALS NHS FOUNDATION TRUST,21023282,"31,190.63 "
Department of Health,NHS Sheffield CCG,28/02/2018,Miscellaneous Expenditure (L9),COUNSELLING SERVICES,SHEFFIELD TEACHING HOSPITALS NHS FOUNDATION TRUST,21023282,146.22 
Department of Health,NHS Sheffield CCG,28/02/2018,Seconded-Basic Sal-Staff fm oth org,COUNSELLING SERVICES,SHEFFIELD TEACHING HOSPITALS NHS FOUNDATION TRUST,21023282,"23,015.44 "
Department of Health,NHS Sheffield CCG,28/02/2018,Seconded-Employer's NHI Costs,COUNSELLING SERVICES,SHEFFIELD TEACHING HOSPITALS NHS FOUNDATION TRUST,21023282,"2,918.08 "
Department of Health,NHS Sheffield CCG,28/02/2018,C&M-GMS DES Minor Surgery,PRC DELEGATED CO-COMMISSIONING,SHIREGREEN MEDICAL CENTRE,21010972,"1,960.00 "
Department of Health,NHS Sheffield CCG,28/02/2018,C&M-GMS Global Sum,PRC DELEGATED CO-COMMISSIONING,SHIREGREEN MEDICAL CENTRE,21010972,"55,776.63 "
Department of Health,NHS Sheffield CCG,28/02/2018,C&M-GMS MPIG Correction Factor,PRC DELEGATED CO-COMMISSIONING,SHIREGREEN MEDICAL CENTRE,21010972,680.53 
Department of Health,NHS Sheffield CCG,28/02/2018,C&M-GMS Prem Cost Rent,PRC DELEGATED CO-COMMISSIONING,SHIREGREEN MEDICAL CENTRE,21010972,"1,792.33 "
Department of Health,NHS Sheffield CCG,28/02/2018,C&M-GMS Prem Notional Rent,PRC DELEGATED CO-COMMISSIONING,SHIREGREEN MEDICAL CENTRE,21010972,"5,375.00 "
Department of Health,NHS Sheffield CCG,28/02/2018,C&M-GMS QOF Aspiration,PRC DELEGATED CO-COMMISSIONING,SHIREGREEN MEDICAL CENTRE,21010972,"6,614.14 "
Department of Health,NHS Sheffield CCG,28/02/2018,C&M-PMS Contract Value,PRC DELEGATED CO-COMMISSIONING,SLOAN MEDICAL CENTRE,20828604,"90,886.23 "
Department of Health,NHS Sheffield CCG,28/02/2018,C&M-PMS DES Learn Dsblty Hlth Chk,PRC DELEGATED CO-COMMISSIONING,SLOAN MEDICAL CENTRE,20828604,"11,200.00 "
Department of Health,NHS Sheffield CCG,28/02/2018,C&M-PMS DES Minor Surgery,PRC DELEGATED CO-COMMISSIONING,SLOAN MEDICAL CENTRE,20828604,"3,780.00 "
Department of Health,NHS Sheffield CCG,28/02/2018,C&M-PMS Funding Differential Review,PRC DELEGATED CO-COMMISSIONING,SLOAN MEDICAL CENTRE,20828604,165.33 
Department of Health,NHS Sheffield CCG,28/02/2018,C&M-PMS Out of Hours Opt Outs,PRC DELEGATED CO-COMMISSIONING,SLOAN MEDICAL CENTRE,20828604,77.72 
Department of Health,NHS Sheffield CCG,28/02/2018,C&M-PMS Prem Actual Rent,PRC DELEGATED CO-COMMISSIONING,SLOAN MEDICAL CENTRE,20828604,"15,535.83 "
Department of Health,NHS Sheffield CCG,28/02/2018,C&M-PMS Prem Notional Rent,PRC DELEGATED CO-COMMISSIONING,SLOAN MEDICAL CENTRE,20828604,608.33 
Department of Health,NHS Sheffield CCG,28/02/2018,C&M-PMS QOF Aspiration,PRC DELEGATED CO-COMMISSIONING,SLOAN MEDICAL CENTRE,20828604,"10,663.96 "
Department of Health,NHS Sheffield CCG,28/02/2018,C&M-PMS Contract Value,PRC DELEGATED CO-COMMISSIONING,SOTHALL MEDICAL CENTRE,20828606,"69,389.43 "
Department of Health,NHS Sheffield CCG,28/02/2018,C&M-PMS DES Learn Dsblty Hlth Chk,PRC DELEGATED CO-COMMISSIONING,SOTHALL MEDICAL CENTRE,20828606,"1,540.00 "
Department of Health,NHS Sheffield CCG,28/02/2018,C&M-PMS DES Minor Surgery,PRC DELEGATED CO-COMMISSIONING,SOTHALL MEDICAL CENTRE,20828606,740.00 
Department of Health,NHS Sheffield CCG,28/02/2018,C&M-PMS Funding Differential Review,PRC DELEGATED CO-COMMISSIONING,SOTHALL MEDICAL CENTRE,20828606,"3,463.83 "
Department of Health,NHS Sheffield CCG,28/02/2018,C&M-PMS Out of Hours Opt Outs,PRC DELEGATED CO-COMMISSIONING,SOTHALL MEDICAL CENTRE,20828606,58.35 
Department of Health,NHS Sheffield CCG,28/02/2018,C&M-PMS Prem Healthcentre Rent,PRC DELEGATED CO-COMMISSIONING,SOTHALL MEDICAL CENTRE,20828606,"2,953.43 "
Department of Health,NHS Sheffield CCG,28/02/2018,C&M-PMS Prem Notional Rent,PRC DELEGATED CO-COMMISSIONING,SOTHALL MEDICAL CENTRE,20828606,"5,116.67 "
Department of Health,NHS Sheffield CCG,28/02/2018,C&M-PMS Prem Water Rates,PRC DELEGATED CO-COMMISSIONING,SOTHALL MEDICAL CENTRE,20828606,192.38 
Department of Health,NHS Sheffield CCG,28/02/2018,C&M-PMS QOF Aspiration,PRC DELEGATED CO-COMMISSIONING,SOTHALL MEDICAL CENTRE,20828606,"8,821.42 "
Department of Health,NHS Sheffield CCG,28/02/2018,Clinical&Medical-Independent Sector,MENTAL HEALTH CONTRACTS,SOUTH YORKSHIRE HOUSING ASSOCIATION LTD,20755825,"34,435.00 "
Department of Health,NHS Sheffield CCG,28/02/2018,Cont Care- Adult 100% Fully Funded,CHC ADULT FULLY FUNDED,SOUTH YORKSHIRE HOUSING ASSOCIATION LTD,20810987,"25,500.00 "
Department of Health,NHS Sheffield CCG,28/02/2018,Cont Care-Physical Disab (<65),CHC ADULT FULLY FUNDED,SOUTH YORKSHIRE HOUSING ASSOCIATION LTD,20842921,"84,810.18 "
Department of Health,NHS Sheffield CCG,28/02/2018,C&M-PMS Contract Value,PRC DELEGATED CO-COMMISSIONING,SOUTHEY GREEN MEDICAL CENTRE,20856813,"25,573.59 "
Department of Health,NHS Sheffield CCG,28/02/2018,C&M-PMS Funding Differential Review,PRC DELEGATED CO-COMMISSIONING,SOUTHEY GREEN MEDICAL CENTRE,20856813,127.58 
Department of Health,NHS Sheffield CCG,28/02/2018,C&M-PMS Out of Hours Opt Outs,PRC DELEGATED CO-COMMISSIONING,SOUTHEY GREEN MEDICAL CENTRE,20856813,30.24 
Department of Health,NHS Sheffield CCG,28/02/2018,C&M-PMS PCO Other,PRC DELEGATED CO-COMMISSIONING,SOUTHEY GREEN MEDICAL CENTRE,20856813,"3,845.00 "
Department of Health,NHS Sheffield CCG,28/02/2018,C&M-PMS Prem Notional Rent,PRC DELEGATED CO-COMMISSIONING,SOUTHEY GREEN MEDICAL CENTRE,20856813,"3,362.50 "
Department of Health,NHS Sheffield CCG,28/02/2018,C&M-PMS Prem Water Rates,PRC DELEGATED CO-COMMISSIONING,SOUTHEY GREEN MEDICAL CENTRE,20856813,146.96 
Department of Health,NHS Sheffield CCG,28/02/2018,C&M-PMS QOF Aspiration,PRC DELEGATED CO-COMMISSIONING,SOUTHEY GREEN MEDICAL CENTRE,20856813,"2,875.40 "
Department of Health,NHS Sheffield CCG,28/02/2018,Clinical&Medical-Independent Sector,NCAS/OATS,SPAMEDICA LTD,20941012,"36,020.43 "
Department of Health,NHS Sheffield CCG,28/02/2018,Clinical&Medical-Independent Sector,NCAS/OATS,SPAMEDICA LTD,20941061,"32,417.03 "
Department of Health,NHS Sheffield CCG,28/02/2018,Clinical&Medical-Independent Sector,NCAS/OATS,SPAMEDICA LTD,20984690,"31,508.29 "
Department of Health,NHS Sheffield CCG,28/02/2018,C&M-GMS DES Minor Surgery,PRC DELEGATED CO-COMMISSIONING,STANNINGTON MEDICAL CENTRE,21010976,205.00 
Department of Health,NHS Sheffield CCG,28/02/2018,C&M-GMS Global Sum,PRC DELEGATED CO-COMMISSIONING,STANNINGTON MEDICAL CENTRE,21010976,"23,002.53 "
Department of Health,NHS Sheffield CCG,28/02/2018,C&M-GMS Prem Notional Rent,PRC DELEGATED CO-COMMISSIONING,STANNINGTON MEDICAL CENTRE,21010976,"2,575.00 "
Department of Health,NHS Sheffield CCG,28/02/2018,C&M-GMS QOF Aspiration,PRC DELEGATED CO-COMMISSIONING,STANNINGTON MEDICAL CENTRE,21010976,"3,253.08 "
Department of Health,NHS Sheffield CCG,28/02/2018,C&M-GMS Cost of Drugs -Prescribing,LOCAL ENHANCED SERVICES,STONECROFT MEDICAL CENTRE,21010974,"1,822.99 "
Department of Health,NHS Sheffield CCG,28/02/2018,C&M-GMS DES Learn Dsblty Hlth Chk,PRC DELEGATED CO-COMMISSIONING,STONECROFT MEDICAL CENTRE,21010974,"1,400.00 "
Department of Health,NHS Sheffield CCG,28/02/2018,C&M-GMS DES Minor Surgery,PRC DELEGATED CO-COMMISSIONING,STONECROFT MEDICAL CENTRE,21010974,"1,400.00 "
Department of Health,NHS Sheffield CCG,28/02/2018,C&M-GMS Global Sum,PRC DELEGATED CO-COMMISSIONING,STONECROFT MEDICAL CENTRE,21010974,"30,200.86 "
Department of Health,NHS Sheffield CCG,28/02/2018,C&M-GMS MPIG Correction Factor,PRC DELEGATED CO-COMMISSIONING,STONECROFT MEDICAL CENTRE,21010974,927.38 
Department of Health,NHS Sheffield CCG,28/02/2018,C&M-GMS Prem Notional Rent,PRC DELEGATED CO-COMMISSIONING,STONECROFT MEDICAL CENTRE,21010974,"2,808.33 "
Department of Health,NHS Sheffield CCG,28/02/2018,C&M-GMS Prof Fees Prescribing,PRC DELEGATED CO-COMMISSIONING,STONECROFT MEDICAL CENTRE,21010974,154.63 
Department of Health,NHS Sheffield CCG,28/02/2018,C&M-GMS QOF Aspiration,PRC DELEGATED CO-COMMISSIONING,STONECROFT MEDICAL CENTRE,21010974,"4,224.91 "
Department of Health,NHS Sheffield CCG,28/02/2018,Clinical&Medical-Independent Sector,MENTAL HEALTH CONTRACTS,SUSASH GB LTD T/A EAGLE HOUSE,20755821,"30,092.00 "
Department of Health,NHS Sheffield CCG,28/02/2018,C&M-GMS Cost of Drugs -Prescribing,LOCAL ENHANCED SERVICES,TOTLEY RISE MEDICAL CENTRE,21010978,250.78 
Department of Health,NHS Sheffield CCG,28/02/2018,C&M-GMS Global Sum,PRC DELEGATED CO-COMMISSIONING,TOTLEY RISE MEDICAL CENTRE,21010978,"22,509.30 "
Department of Health,NHS Sheffield CCG,28/02/2018,C&M-GMS MPIG Correction Factor,PRC DELEGATED CO-COMMISSIONING,TOTLEY RISE MEDICAL CENTRE,21010978,154.70 
Department of Health,NHS Sheffield CCG,28/02/2018,C&M-GMS Prem Notional Rent,PRC DELEGATED CO-COMMISSIONING,TOTLEY RISE MEDICAL CENTRE,21010978,"1,491.67 "
Department of Health,NHS Sheffield CCG,28/02/2018,C&M-GMS Prem Water Rates,PRC DELEGATED CO-COMMISSIONING,TOTLEY RISE MEDICAL CENTRE,21010978,84.70 
Department of Health,NHS Sheffield CCG,28/02/2018,C&M-GMS Prof Fees Prescribing,PRC DELEGATED CO-COMMISSIONING,TOTLEY RISE MEDICAL CENTRE,21010978,86.15 
Department of Health,NHS Sheffield CCG,28/02/2018,C&M-GMS QOF Aspiration,PRC DELEGATED CO-COMMISSIONING,TOTLEY RISE MEDICAL CENTRE,21010978,"2,269.92 "
Department of Health,NHS Sheffield CCG,28/02/2018,C&M-GMS Cost of Drugs -Prescribing,LOCAL ENHANCED SERVICES,TRAMWAYS MEDICAL CENTRE,21010980,"1,679.72 "
Department of Health,NHS Sheffield CCG,28/02/2018,C&M-GMS DES Minor Surgery,PRC DELEGATED CO-COMMISSIONING,TRAMWAYS MEDICAL CENTRE,21010980,"7,975.00 "
Department of Health,NHS Sheffield CCG,28/02/2018,C&M-GMS Global Sum,PRC DELEGATED CO-COMMISSIONING,TRAMWAYS MEDICAL CENTRE,21010980,"58,443.62 "
Department of Health,NHS Sheffield CCG,28/02/2018,C&M-GMS Prem Cost Rent,PRC DELEGATED CO-COMMISSIONING,TRAMWAYS MEDICAL CENTRE,21010980,"4,012.75 "
Department of Health,NHS Sheffield CCG,28/02/2018,C&M-GMS Prof Fees Prescribing,PRC DELEGATED CO-COMMISSIONING,TRAMWAYS MEDICAL CENTRE,21010980,223.11 
Department of Health,NHS Sheffield CCG,28/02/2018,C&M-GMS QOF Aspiration,PRC DELEGATED CO-COMMISSIONING,TRAMWAYS MEDICAL CENTRE,21010980,"6,336.58 "
Department of Health,NHS Sheffield CCG,28/02/2018,Cont Care-Funded Nursing Care Allow,FUNDED NURSING CARE,ULTIMA CARE CENTRES (NO1) LTD,20811037,"31,519.45 "
Department of Health,NHS Sheffield CCG,28/02/2018,C&M-PMS Contract Value,PRC DELEGATED CO-COMMISSIONING,UNIVERSITY HEALTH SERVICE,20828610,"(17,600.77)"
Department of Health,NHS Sheffield CCG,28/02/2018,C&M-PMS GP Statutory Levy,PRC DELEGATED CO-COMMISSIONING,UNIVERSITY HEALTH SERVICE,20828610,"(1,015.29)"
Department of Health,NHS Sheffield CCG,28/02/2018,C&M-PMS Out of Hours Opt Outs,PRC DELEGATED CO-COMMISSIONING,UNIVERSITY HEALTH SERVICE,20828610,"(8,233.46)"
Department of Health,NHS Sheffield CCG,28/02/2018,C&M-PMS Voluntary Levy,PRC DELEGATED CO-COMMISSIONING,UNIVERSITY HEALTH SERVICE,20828610,(169.22)
Department of Health,NHS Sheffield CCG,28/02/2018,C&M-PMS Contract Value,PRC DELEGATED CO-COMMISSIONING,UNIVERSITY HEALTH SERVICE,20828611,"168,118.49 "
Department of Health,NHS Sheffield CCG,28/02/2018,C&M-PMS DES Minor Surgery,PRC DELEGATED CO-COMMISSIONING,UNIVERSITY HEALTH SERVICE,20828611,"1,955.00 "
Department of Health,NHS Sheffield CCG,28/02/2018,C&M-PMS Out of Hours Opt Outs,PRC DELEGATED CO-COMMISSIONING,UNIVERSITY HEALTH SERVICE,20828611,880.83 
Department of Health,NHS Sheffield CCG,28/02/2018,C&M-PMS Prem Notional Rent,PRC DELEGATED CO-COMMISSIONING,UNIVERSITY HEALTH SERVICE,20828611,"15,833.33 "
Department of Health,NHS Sheffield CCG,28/02/2018,C&M-PMS Prem Water Rates,PRC DELEGATED CO-COMMISSIONING,UNIVERSITY HEALTH SERVICE,20828611,659.22 
Department of Health,NHS Sheffield CCG,28/02/2018,C&M-PMS QOF Aspiration,PRC DELEGATED CO-COMMISSIONING,UNIVERSITY HEALTH SERVICE,20828611,"3,640.26 "
Department of Health,NHS Sheffield CCG,28/02/2018,Clinical&Medical-Independent Sector,CLINICAL LEADS,UNIVERSITY OF SHEFFIELD,20931856,"24,500.00 "
Department of Health,NHS Sheffield CCG,28/02/2018,C&M-GMS Cost of Drugs -Prescribing,LOCAL ENHANCED SERVICES,UPPERTHORPE MEDICAL CENTRE,21010983,"2,923.50 "
Department of Health,NHS Sheffield CCG,28/02/2018,C&M-GMS DES Minor Surgery,PRC DELEGATED CO-COMMISSIONING,UPPERTHORPE MEDICAL CENTRE,21010983,"1,005.00 "
Department of Health,NHS Sheffield CCG,28/02/2018,C&M-GMS Global Sum,PRC DELEGATED CO-COMMISSIONING,UPPERTHORPE MEDICAL CENTRE,21010983,"75,916.18 "
Department of Health,NHS Sheffield CCG,28/02/2018,C&M-GMS MPIG Correction Factor,PRC DELEGATED CO-COMMISSIONING,UPPERTHORPE MEDICAL CENTRE,21010983,"1,988.60 "
Department of Health,NHS Sheffield CCG,28/02/2018,C&M-GMS Prem Notional Rent,PRC DELEGATED CO-COMMISSIONING,UPPERTHORPE MEDICAL CENTRE,21010983,"2,497.83 "
Department of Health,NHS Sheffield CCG,28/02/2018,C&M-GMS Prof Fees Prescribing,PRC DELEGATED CO-COMMISSIONING,UPPERTHORPE MEDICAL CENTRE,21010983,527.96 
Department of Health,NHS Sheffield CCG,28/02/2018,C&M-GMS QOF Aspiration,PRC DELEGATED CO-COMMISSIONING,UPPERTHORPE MEDICAL CENTRE,21010983,"9,309.14 "
Department of Health,NHS Sheffield CCG,28/02/2018,C&M-PMS Contract Value,PRC DELEGATED CO-COMMISSIONING,UPWELL STREET SURGERY,20828613,"37,326.83 "
Department of Health,NHS Sheffield CCG,28/02/2018,C&M-PMS DES Minor Surgery,PRC DELEGATED CO-COMMISSIONING,UPWELL STREET SURGERY,20828613,960.00 
Department of Health,NHS Sheffield CCG,28/02/2018,C&M-PMS Funding Differential Review,PRC DELEGATED CO-COMMISSIONING,UPWELL STREET SURGERY,20828613,"2,004.50 "
Department of Health,NHS Sheffield CCG,28/02/2018,C&M-PMS Out of Hours Opt Outs,PRC DELEGATED CO-COMMISSIONING,UPWELL STREET SURGERY,20828613,91.08 
Department of Health,NHS Sheffield CCG,28/02/2018,C&M-PMS Prem Actual Rent,PRC DELEGATED CO-COMMISSIONING,UPWELL STREET SURGERY,20828613,"8,137.50 "
Department of Health,NHS Sheffield CCG,28/02/2018,C&M-PMS Prem Notional Rent,PRC DELEGATED CO-COMMISSIONING,UPWELL STREET SURGERY,20828613,"8,137.50 "
Department of Health,NHS Sheffield CCG,28/02/2018,C&M-PMS Prem Rates,PRC DELEGATED CO-COMMISSIONING,UPWELL STREET SURGERY,20828613,673.80 
Department of Health,NHS Sheffield CCG,28/02/2018,C&M-PMS QOF Aspiration,PRC DELEGATED CO-COMMISSIONING,UPWELL STREET SURGERY,20828613,"4,877.64 "
Department of Health,NHS Sheffield CCG,28/02/2018,C&M-PMS Contract Value,PRC DELEGATED CO-COMMISSIONING,VALLEY MEDICAL CENTRE,20828615,"75,530.55 "
Department of Health,NHS Sheffield CCG,28/02/2018,C&M-PMS DES Minor Surgery,PRC DELEGATED CO-COMMISSIONING,VALLEY MEDICAL CENTRE,20828615,"1,920.00 "
Department of Health,NHS Sheffield CCG,28/02/2018,C&M-PMS Funding Differential Review,PRC DELEGATED CO-COMMISSIONING,VALLEY MEDICAL CENTRE,20828615,271.17 
Department of Health,NHS Sheffield CCG,28/02/2018,C&M-PMS Out of Hours Opt Outs,PRC DELEGATED CO-COMMISSIONING,VALLEY MEDICAL CENTRE,20828615,29.75 
Department of Health,NHS Sheffield CCG,28/02/2018,C&M-PMS PCO Locum Adop/Pat/Mat,PRC DELEGATED CO-COMMISSIONING,VALLEY MEDICAL CENTRE,20828615,"4,203.51 "
Department of Health,NHS Sheffield CCG,28/02/2018,C&M-PMS Prem Water Rates,PRC DELEGATED CO-COMMISSIONING,VALLEY MEDICAL CENTRE,20828615,335.32 
Department of Health,NHS Sheffield CCG,28/02/2018,C&M-PMS QOF Aspiration,PRC DELEGATED CO-COMMISSIONING,VALLEY MEDICAL CENTRE,20828615,"9,125.55 "
Department of Health,NHS Sheffield CCG,28/02/2018,C&M-GMS Cost of Drugs -Prescribing,LOCAL ENHANCED SERVICES,WALKLEY HOUSE MEDICAL CENTRE,21010988,"1,184.30 "
Department of Health,NHS Sheffield CCG,28/02/2018,C&M-GMS DES Minor Surgery,PRC DELEGATED CO-COMMISSIONING,WALKLEY HOUSE MEDICAL CENTRE,21010988,"1,975.00 "
Department of Health,NHS Sheffield CCG,28/02/2018,C&M-GMS Global Sum,PRC DELEGATED CO-COMMISSIONING,WALKLEY HOUSE MEDICAL CENTRE,21010988,"78,588.79 "
Department of Health,NHS Sheffield CCG,28/02/2018,C&M-GMS Prem Notional Rent,PRC DELEGATED CO-COMMISSIONING,WALKLEY HOUSE MEDICAL CENTRE,21010988,"5,635.51 "
Department of Health,NHS Sheffield CCG,28/02/2018,C&M-GMS Prem Rates,PRC DELEGATED CO-COMMISSIONING,WALKLEY HOUSE MEDICAL CENTRE,21010988,"16,641.33 "
Department of Health,NHS Sheffield CCG,28/02/2018,C&M-GMS Prof Fees Prescribing,PRC DELEGATED CO-COMMISSIONING,WALKLEY HOUSE MEDICAL CENTRE,21010988,284.96 
Department of Health,NHS Sheffield CCG,28/02/2018,C&M-GMS QOF Aspiration,PRC DELEGATED CO-COMMISSIONING,WALKLEY HOUSE MEDICAL CENTRE,21010988,"8,922.54 "
Department of Health,NHS Sheffield CCG,28/02/2018,C&M-GMS Cost of Drugs -Prescribing,LOCAL ENHANCED SERVICES,WHITE HOUSE SURGERY SHEFFIELD,21010986,"1,037.86 "
Department of Health,NHS Sheffield CCG,28/02/2018,C&M-GMS DES Learn Dsblty Hlth Chk,PRC DELEGATED CO-COMMISSIONING,WHITE HOUSE SURGERY SHEFFIELD,21010986,"1,960.00 "
Department of Health,NHS Sheffield CCG,28/02/2018,C&M-GMS DES Minor Surgery,PRC DELEGATED CO-COMMISSIONING,WHITE HOUSE SURGERY SHEFFIELD,21010986,480.00 
Department of Health,NHS Sheffield CCG,28/02/2018,C&M-GMS Global Sum,PRC DELEGATED CO-COMMISSIONING,WHITE HOUSE SURGERY SHEFFIELD,21010986,"47,016.79 "
Department of Health,NHS Sheffield CCG,28/02/2018,C&M-GMS MPIG Correction Factor,PRC DELEGATED CO-COMMISSIONING,WHITE HOUSE SURGERY SHEFFIELD,21010986,"2,086.94 "
Department of Health,NHS Sheffield CCG,28/02/2018,C&M-GMS Prem Notional Rent,PRC DELEGATED CO-COMMISSIONING,WHITE HOUSE SURGERY SHEFFIELD,21010986,"9,104.17 "
Department of Health,NHS Sheffield CCG,28/02/2018,C&M-GMS Prof Fees Prescribing,PRC DELEGATED CO-COMMISSIONING,WHITE HOUSE SURGERY SHEFFIELD,21010986,165.67 
Department of Health,NHS Sheffield CCG,28/02/2018,C&M-GMS QOF Aspiration,PRC DELEGATED CO-COMMISSIONING,WHITE HOUSE SURGERY SHEFFIELD,21010986,"6,083.99 "
Department of Health,NHS Sheffield CCG,28/02/2018,Cont Care-Physical Disab (<65),CHC ADULT FULLY FUNDED,WILLOWBECK HEALTH CARE LTD,20842980,"155,537.14 "
Department of Health,NHS Sheffield CCG,28/02/2018,C&M-PMS Contract Value,PRC DELEGATED CO-COMMISSIONING,WINCOBANK MEDICAL CENTRE,20856814,"59,620.95 "
Department of Health,NHS Sheffield CCG,28/02/2018,C&M-PMS DES Minor Surgery,PRC DELEGATED CO-COMMISSIONING,WINCOBANK MEDICAL CENTRE,20856814,"1,400.00 "
Department of Health,NHS Sheffield CCG,28/02/2018,C&M-PMS Funding Differential Review,PRC DELEGATED CO-COMMISSIONING,WINCOBANK MEDICAL CENTRE,20856814,9.92 
Department of Health,NHS Sheffield CCG,28/02/2018,C&M-PMS Out of Hours Opt Outs,PRC DELEGATED CO-COMMISSIONING,WINCOBANK MEDICAL CENTRE,20856814,9.74 
Department of Health,NHS Sheffield CCG,28/02/2018,C&M-PMS PCO Other,PRC DELEGATED CO-COMMISSIONING,WINCOBANK MEDICAL CENTRE,20856814,"4,526.00 "
Department of Health,NHS Sheffield CCG,28/02/2018,C&M-PMS Prem Healthcentre Rent,PRC DELEGATED CO-COMMISSIONING,WINCOBANK MEDICAL CENTRE,20856814,"42,475.13 "
Department of Health,NHS Sheffield CCG,28/02/2018,C&M-PMS QOF Aspiration,PRC DELEGATED CO-COMMISSIONING,WINCOBANK MEDICAL CENTRE,20856814,"6,934.01 "
Department of Health,NHS Sheffield CCG,28/02/2018,C&M-PMS Contract Value,PRC DELEGATED CO-COMMISSIONING,WOODHOUSE HEALTH CENTRE,20828617,"96,169.70 "
Department of Health,NHS Sheffield CCG,28/02/2018,C&M-PMS DES Learn Dsblty Hlth Chk,PRC DELEGATED CO-COMMISSIONING,WOODHOUSE HEALTH CENTRE,20828617,"1,260.00 "
Department of Health,NHS Sheffield CCG,28/02/2018,C&M-PMS DES Minor Surgery,PRC DELEGATED CO-COMMISSIONING,WOODHOUSE HEALTH CENTRE,20828617,"2,640.00 "
Department of Health,NHS Sheffield CCG,28/02/2018,C&M-PMS Funding Differential Review,PRC DELEGATED CO-COMMISSIONING,WOODHOUSE HEALTH CENTRE,20828617,"2,776.33 "
Department of Health,NHS Sheffield CCG,28/02/2018,C&M-PMS Out of Hours Opt Outs,PRC DELEGATED CO-COMMISSIONING,WOODHOUSE HEALTH CENTRE,20828617,24.94 
Department of Health,NHS Sheffield CCG,28/02/2018,C&M-PMS PCO Seniority,PRC DELEGATED CO-COMMISSIONING,WOODHOUSE HEALTH CENTRE,20828617,"11,062.38 "
Department of Health,NHS Sheffield CCG,28/02/2018,C&M-PMS Prem Notional Rent,PRC DELEGATED CO-COMMISSIONING,WOODHOUSE HEALTH CENTRE,20828617,"6,338.58 "
Department of Health,NHS Sheffield CCG,28/02/2018,C&M-PMS Prem Rates,PRC DELEGATED CO-COMMISSIONING,WOODHOUSE HEALTH CENTRE,20828617,"11,444.74 "
Department of Health,NHS Sheffield CCG,28/02/2018,C&M-PMS Prem Water Rates,PRC DELEGATED CO-COMMISSIONING,WOODHOUSE HEALTH CENTRE,20828617,170.75 
Department of Health,NHS Sheffield CCG,28/02/2018,C&M-PMS QOF Aspiration,PRC DELEGATED CO-COMMISSIONING,WOODHOUSE HEALTH CENTRE,20828617,"14,743.27 "
Department of Health,NHS Sheffield CCG,28/02/2018,C&M-PMS Contract Value,PRC DELEGATED CO-COMMISSIONING,WOODSEATS MEDICAL CENTRE,20833298,"69,362.98 "
Department of Health,NHS Sheffield CCG,28/02/2018,C&M-PMS DES Minor Surgery,PRC DELEGATED CO-COMMISSIONING,WOODSEATS MEDICAL CENTRE,20833298,"3,615.00 "
Department of Health,NHS Sheffield CCG,28/02/2018,C&M-PMS Funding Differential Review,PRC DELEGATED CO-COMMISSIONING,WOODSEATS MEDICAL CENTRE,20833298,397.08 
Department of Health,NHS Sheffield CCG,28/02/2018,C&M-PMS Prem Notional Rent,PRC DELEGATED CO-COMMISSIONING,WOODSEATS MEDICAL CENTRE,20833298,"11,666.42 "
Department of Health,NHS Sheffield CCG,28/02/2018,C&M-PMS QOF Aspiration,PRC DELEGATED CO-COMMISSIONING,WOODSEATS MEDICAL CENTRE,20833298,"8,124.33 "
Department of Health,NHS Sheffield CCG,28/02/2018,Hcare Srv Rec NHS Trust-CQUIN,AMBULANCE SERVICES,YORKSHIRE AMBULANCE SERVICE NHS TRUST,20795486,"27,566.00 "
Department of Health,NHS Sheffield CCG,28/02/2018,Hcare Srv Rec NHS Trust-Contract Baseline,AMBULANCE SERVICES,YORKSHIRE AMBULANCE SERVICE NHS TRUST,20795490,"123,979.00 "
Department of Health,NHS Sheffield CCG,28/02/2018,Hcare Srv Rec NHS Trust-Contract Baseline,AMBULANCE SERVICES,YORKSHIRE AMBULANCE SERVICE NHS TRUST,20795491,"1,440,139.00 "
Department of Health,NHS Sheffield CCG,28/02/2018,Hcare Srv Rec NHS Trust-Contract Baseline,PATIENT TRANSPORT,YORKSHIRE AMBULANCE SERVICE NHS TRUST,20795492,"255,744.52 "
Department of Health,NHS Sheffield CCG,28/02/2018,Hcare Srv Rec NHS Trust-Contract Baseline,NHS 111,YORKSHIRE AMBULANCE SERVICE NHS TRUST,20795493,"98,607.99 "
